Workbook

Sheet Control
C30: Numerical value
C31: Suggested formula
C32: Probabilistic parameters
C33: Data specified elsewhere
C34: Suggested formula edited

Sheet Inert Restorati (hidden)
A1: SOURCE CONCENTRATIONS: Inert Restorati
A3: Source Data Options | B3: Source Type
A11: Target Standard
A13: Select which Quality Standard (defined on the Contaminants sheet) to apply
A14: Not Specified
A17: Source Geometry
A19: Inert_Restorati_Source_length | C19: m
A20: Inert_Restorati_Source_width | C20: m
A21: Inert_Restorati_Source_area | B21: =area_c -> 149545 | C21: m2
A22: Inert_Restorati_Source_thickness | B22: =thick_c -> 5.43 | C22: m
A23: Inert_Restorati_Source_volume | B23: =vol_c -> 322827.9876 | C23: m3
A26: General Source Properties
A28: Inert_Restorati_Source_field_capacity | B28: [-] | C28: 0.3
A29: Distribution | C29: constant
A30: Inert_Restorati_Source_field_capacity_param1
A31: Inert_Restorati_Source_field_capacity_param2
A32: Inert_Restorati_Source_field_capacity_param3
A35: Inert_Restorati_Source_porosity_total | B35: [-]
A36: Distribution | C36: constant
A37: Inert_Restorati_Source_porosity_total_param1
A38: Inert_Restorati_Source_porosity_total_param2
A39: Inert_Restorati_Source_porosity_total_param3
A42: Inert_Restorati_Source_porosity_water_filled | B42: [-]
A43: Distribution | C43: constant
A44: Inert_Restorati_Source_porosity_water_filled_param1
A45: Inert_Restorati_Source_porosity_water_filled_param2
A46: Inert_Restorati_Source_porosity_water_filled_param3
A49: Inert_Restorati_Source_porosity_air_filled | B49: [-] | C49: =Inert_Restorati_Source_porosity_total - Inert_Restorati_Source_porosity_water_filled -> 0
A50: Distribution | C50: constant
A51: Inert_Restorati_Source_porosity_air_filled_param1
A52: Inert_Restorati_Source_porosity_air_filled_param2
A53: Inert_Restorati_Source_porosity_air_filled_param3
A56: Inert_Restorati_Source_dry_bulk_density | B56: kg/m3
A57: Distribution | C57: constant
A58: Inert_Restorati_Source_dry_bulk_density_param1
A59: Inert_Restorati_Source_dry_bulk_density_param2
A60: Inert_Restorati_Source_dry_bulk_density_param3
A63: Inert_Restorati_Source_fraction_organic_carbon | B63: [-]
A64: Distribution | C64: constant
A65: Inert_Restorati_Source_fraction_organic_carbon_param1
A66: Inert_Restorati_Source_fraction_organic_carbon_param2
A67: Inert_Restorati_Source_fraction_organic_carbon_param3
A71: Source Contaminant Information
A73: Source determinand names | C73: =IF( ISTEXT( (Contaminants_Source_determinand_names Contaminants_Species1)), (Contaminants_Source_determinand_names Contaminants_Species1), "Undefined" ) -> Arsenic | D73: =IF( ISTEXT( (Contaminants_Source_determinand_names Contaminants_Species2)), (Contaminants_Source_determinand_names Contaminants_Species2), "Undefined" ) -> Cadmium | E73: =IF( ISTEXT( (Contaminants_Source_determinand_names Contaminants_Species3)), (Contaminants_Source_determinand_names Contaminants_Species3), "Undefined" ) -> Chromium | F73: =IF( ISTEXT( (Contaminants_Source_determinand_names Contaminants_Species4)), (Contaminants_Source_determinand_names Contaminants_Species4), "Undefined" ) -> Copper | G73: =IF( ISTEXT( (Contaminants_Source_determinand_names Contaminants_Species5)), (Contaminants_Source_determinand_names Contaminants_Species5), "Undefined" ) -> Mercury | H73: =IF( ISTEXT( (Contaminants_Source_determinand_names Contaminants_Species6)), (Contaminants_Source_determinand_names Contaminants_Species6), "Undefined" ) -> Molybdenum | I73: =IF( ISTEXT( (Contaminants_Source_determinand_names Contaminants_Species7)), (Contaminants_Source_determinand_names Contaminants_Species7), "Undefined" ) -> Lead | J73: =IF( ISTEXT( (Contaminants_Source_determinand_names Contaminants_Species8)), (Contaminants_Source_determinand_names Contaminants_Species8), "Undefined" ) -> Antimony
A75: Inert_Restorati_Pore_water_concentration | B75: mg/L | C75: 0.06 | D75: 0.02 | E75: 0.1 | F75: 0.6 | G75: 0.002 | H75: 0.2 | I75: 0.15 | J75: 0.1
A76: Distribution | C76: constant | D76: constant | E76: constant | F76: constant | G76: constant | H76: constant | I76: constant | J76: constant
A77: Inert_Restorati_Pore_water_concentration_param1
A78: Inert_Restorati_Pore_water_concentration_param2
A79: Inert_Restorati_Pore_water_concentration_param3
A82: Inert_Restorati_Leaching_test_concentration | B82: mg/L
A83: Distribution | C83: constant | D83: constant | E83: constant | F83: constant | G83: constant | H83: constant | I83: constant | J83: constant
A84: Inert_Restorati_Leaching_test_concentration_param1
A85: Inert_Restorati_Leaching_test_concentration_param2
A86: Inert_Restorati_Leaching_test_concentration_param3
A89: Inert_Restorati_Soil_contaminant_concentration | B89: mg/kg | C89: 1 | D89: 0.1
A90: Distribution | C90: constant | D90: constant | E90: constant | F90: constant | G90: constant | H90: constant | I90: constant | J90: constant
A91: Inert_Restorati_Soil_contaminant_concentration_param1
A92: Inert_Restorati_Soil_contaminant_concentration_param2
A93: Inert_Restorati_Soil_contaminant_concentration_param3
A96: Inert_Restorati_Source_solid_water_partitioning_coefficient_Kd | B96: L/kg | C96: =(Contaminants_Organic_Carbon_Water_Partition_Coefficient_Koc Contaminants_Species1) * ( Inert_Restorati_Source_fraction_organic_carbon) -> 0 | D96: =(Contaminants_Organic_Carbon_Water_Partition_Coefficient_Koc Contaminants_Species2) * ( Inert_Restorati_Source_fraction_organic_carbon) -> 0 | E96: =(Contaminants_Organic_Carbon_Water_Partition_Coefficient_Koc Contaminants_Species3) * ( Inert_Restorati_Source_fraction_organic_carbon) -> 0 | F96: =(Contaminants_Organic_Carbon_Water_Partition_Coefficient_Koc Contaminants_Species4) * ( Inert_Restorati_Source_fraction_organic_carbon) -> 0 | G96: =(Contaminants_Organic_Carbon_Water_Partition_Coefficient_Koc Contaminants_Species5) * ( Inert_Restorati_Source_fraction_organic_carbon) -> 0 | H96: =(Contaminants_Organic_Carbon_Water_Partition_Coefficient_Koc Contaminants_Species6) * ( Inert_Restorati_Source_fraction_organic_carbon) -> 0 | I96: =(Contaminants_Organic_Carbon_Water_Partition_Coefficient_Koc Contaminants_Species7) * ( Inert_Restorati_Source_fraction_organic_carbon) -> 0 | J96: =(Contaminants_Organic_Carbon_Water_Partition_Coefficient_Koc Contaminants_Species8) * ( Inert_Restorati_Source_fraction_organic_carbon) -> 0
A97: Distribution | C97: constant | D97: constant | E97: constant | F97: constant | G97: constant | H97: constant | I97: constant | J97: constant
A98: Inert_Restorati_Source_solid_water_partitioning_coefficient_Kd_param1
A99: Inert_Restorati_Source_solid_water_partitioning_coefficient_Kd_param2
A100: Inert_Restorati_Source_solid_water_partitioning_coefficient_Kd_param3
A103: Inert_Restorati_Initial_inventory | B103: kg | C103: =0.001 * (Inert_Restorati_Pore_water_concentration) * (Inert_Restorati_Source_field_capacity) * (Inert_Restorati_Source_volume) -> 5.810903777 | D103: 1.936967926 | E103: 9.684839628 | F103: 58.10903777 | G103: 0.1936967926 | H103: 19.36967926 | I103: 14.52725944 | J103: 9.684839628
A104: Distribution | C104: constant | D104: constant | E104: constant | F104: constant | G104: constant | H104: constant | I104: constant | J104: constant
A105: Inert_Restorati_Initial_inventory_param1
A106: Inert_Restorati_Initial_inventory_param2
A107: Inert_Restorati_Initial_inventory_param3
A110: Inert_Restorati_Kappa_slope_value_m | B110: kg/L
A111: Distribution | C111: constant | D111: constant | E111: constant | F111: constant | G111: constant | H111: constant | I111: constant | J111: constant
A112: Inert_Restorati_Kappa_slope_value_m_param1
A113: Inert_Restorati_Kappa_slope_value_m_param2
A114: Inert_Restorati_Kappa_slope_value_m_param3
A117: Inert_Restorati_Kappa_intercept_value_c | B117: kg/L
A118: Distribution | C118: constant | D118: constant | E118: constant | F118: constant | G118: constant | H118: constant | I118: constant | J118: constant
A119: Inert_Restorati_Kappa_intercept_value_c_param1
A120: Inert_Restorati_Kappa_intercept_value_c_param2
A121: Inert_Restorati_Kappa_intercept_value_c_param3
A124: Inert_Restorati_Kappa_Value | B124: kg/L | C124: =IF(AND(ISNUMBER(Inert_Restorati_Kappa_slope_value_m),ISNUMBER(Inert_Restorati_Kappa_intercept_value_c),ISNUMBER(Inert_Restorati_Input_concentration)), IF(Inert_Restorati_Input_concentration>0,MAX(0,Inert_Restorati_Kappa_slope_value_m * LN(1000 * Inert_Restorati_Input_concentration) + Inert_Restorati_Kappa_intercept_value_c),""),"Not-used") -> Not-used | D124: Not-used | E124: Not-used | F124: Not-used | G124: Not-used | H124: Not-used | I124: Not-used | J124: Not-used
A125: Distribution | C125: constant | D125: constant | E125: constant | F125: constant | G125: constant | H125: constant | I125: constant | J125: constant
A126: Inert_Restorati_Kappa_Value_param1
A127: Inert_Restorati_Kappa_Value_param2
A128: Inert_Restorati_Kappa_Value_param3
A131: Inert_Restorati_Input_concentration | B131: mg/L | C131: =(Inert_Restorati_Pore_water_concentration) -> 0.06 | D131: 0.02 | E131: 0.1 | F131: 0.6 | G131: 0.002 | H131: 0.2 | I131: 0.15 | J131: 0.1

Sheet Contaminants
A1: CONTAMINANT INFORMATION
D3: Species1 | E3: Species2 | F3: Species3 | G3: Species4 | H3: Species5 | I3: Species6 | J3: Species7 | K3: Species8
A4: Source determinand names | C4: 1 | D4: Arsenic | E4: Cadmium | F4: Chromium | G4: Copper | H4: Mercury | I4: Molybdenum | J4: Lead | K4: Antimony
A7: Receptor Target Concentrations
B8: Name | D8: Values in mg/L
A9: Quality Standard 1 | B9: EAL (GW) | D9: =User_ScreeningAssessment_VoidC!G3 -> 0.0012 | E9: =User_ScreeningAssessment_VoidC!G5 -> 0.000196 | F9: =User_ScreeningAssessment_VoidC!G6 -> 0.001 | G9: =User_ScreeningAssessment_VoidC!G7 -> 0.00506 | H9: =User_ScreeningAssessment_VoidC!G8 -> 2e-05 | I9: =User_ScreeningAssessment_VoidC!G9 -> 0.002 | J9: =User_ScreeningAssessment_VoidC!G11 -> 0.0002 | K9: =User_ScreeningAssessment_VoidC!G12 -> 0.0005
A10: Quality Standard 2
A11: Quality Standard 3
A12: Quality Standard 4
B13: Not Specified
A15: Generic Contaminant Properties
A17: Contaminants_Solubility | B17: mg/L
A18: Distribution | D18: constant | E18: constant | F18: constant | G18: constant | H18: constant | I18: constant | J18: constant | K18: constant
A19: Contaminants_Solubility_param1
A20: Contaminants_Solubility_param2
A21: Contaminants_Solubility_param3
A24: Contaminants_Henrys_Law_Constant | B24: [-]
A25: Distribution | D25: constant | E25: constant | F25: constant | G25: constant | H25: constant | I25: constant | J25: constant | K25: constant
A26: Contaminants_Henrys_Law_Constant_param1
A27: Contaminants_Henrys_Law_Constant_param2
A28: Contaminants_Henrys_Law_Constant_param3
A31: Contaminants_Organic_Carbon_Water_Partition_Coefficient_Koc | B31: L/kg
A32: Distribution | D32: constant | E32: constant | F32: constant | G32: constant | H32: constant | I32: constant | J32: constant | K32: constant
A33: Contaminants_Organic_Carbon_Water_Partition_Coefficient_Koc_param1
A34: Contaminants_Organic_Carbon_Water_Partition_Coefficient_Koc_param2
A35: Contaminants_Organic_Carbon_Water_Partition_Coefficient_Koc_param3
A38: Contaminants_Free_Water_Diffusion_Coefficient | B38: m2/s | D38: =Free_Water_Diffusion_Coefficient -> 2e-09 | E38: 2e-09 | F38: 2e-09 | G38: 2e-09 | H38: 2e-09 | I38: 2e-09 | J38: 2e-09 | K38: 2e-09
A39: Distribution | D39: constant | E39: constant | F39: constant | G39: constant | H39: constant | I39: constant | J39: constant | K39: constant
A40: Contaminants_Free_Water_Diffusion_Coefficient_param1
A41: Contaminants_Free_Water_Diffusion_Coefficient_param2
A42: Contaminants_Free_Water_Diffusion_Coefficient_param3

Sheet Hydrogeology
A1: HYDROGEOLOGICAL UNITS
A3: Hydrogeological Units | C3: Attenuation Lay | D3: Beenham Grange
A5: Hydrogeology_Unit_Thickness | B5: m | C5: 1 | D5: =thick_c -> 5.43
A6: Distribution | C6: constant | D6: constant | E6: constant | F6: constant | G6: constant | H6: constant | I6: constant | J6: constant | K6: constant | L6: constant | M6: constant | N6: constant | O6: constant | P6: constant | Q6: constant | R6: constant
A7: Hydrogeology_Unit_Thickness_param1
A8: Hydrogeology_Unit_Thickness_param2
A9: Hydrogeology_Unit_Thickness_param3
A12: Hydrogeology_Log_Hydraulic_Conductivity | B12: log(m/s)
A13: Distribution | C13: constant | D13: constant | E13: constant | F13: constant | G13: constant | H13: constant | I13: constant | J13: constant | K13: constant | L13: constant | M13: constant | N13: constant | O13: constant | P13: constant | Q13: constant | R13: constant
A14: Hydrogeology_Log_Hydraulic_Conductivity_param1
A15: Hydrogeology_Log_Hydraulic_Conductivity_param2
A16: Hydrogeology_Log_Hydraulic_Conductivity_param3
A19: Hydrogeology_Hydraulic_Conductivity | B19: m/s | C19: =AL_K -> 1e-07 | D19: =BGF_K -> 0.001412 | E19: =POWER(10, (Hydrogeology_Log_Hydraulic_Conductivity)) -> 1 | F19: 1 | G19: 1 | H19: 1 | I19: 1 | J19: 1 | K19: 1 | L19: 1 | M19: 1 | N19: 1 | O19: 1 | P19: 1 | Q19: 1 | R19: 1
A20: Distribution | C20: constant | D20: constant | E20: constant | F20: constant | G20: constant | H20: constant | I20: constant | J20: constant | K20: constant | L20: constant | M20: constant | N20: constant | O20: constant | P20: constant | Q20: constant | R20: constant
A21: Hydrogeology_Hydraulic_Conductivity_param1
A22: Hydrogeology_Hydraulic_Conductivity_param2
A23: Hydrogeology_Hydraulic_Conductivity_param3
A26: Hydrogeology_Head | B26: m
A27: Distribution | C27: constant | D27: constant | E27: constant | F27: constant | G27: constant | H27: constant | I27: constant | J27: constant | K27: constant | L27: constant | M27: constant | N27: constant | O27: constant | P27: constant | Q27: constant | R27: constant
A28: Hydrogeology_Head_param1
A29: Hydrogeology_Head_param2
A30: Hydrogeology_Head_param3
A33: Hydrogeology_Hydraulic_Gradient | B33: [-] | C33: =AL_i -> 0.02405882353 | D33: =BGF_hydraulic_gradient -> 0.003
A34: Distribution | C34: constant | D34: constant | E34: constant | F34: constant | G34: constant | H34: constant | I34: constant | J34: constant | K34: constant | L34: constant | M34: constant | N34: constant | O34: constant | P34: constant | Q34: constant | R34: constant
A35: Hydrogeology_Hydraulic_Gradient_param1
A36: Hydrogeology_Hydraulic_Gradient_param2
A37: Hydrogeology_Hydraulic_Gradient_param3
A40: Hydrogeology_Porosity | B40: [-] | C40: =AL_porosity -> 0.05 | D40: =BGF_porosity -> 0.2
A41: Distribution | C41: constant | D41: constant | E41: constant | F41: constant | G41: constant | H41: constant | I41: constant | J41: constant | K41: constant | L41: constant | M41: constant | N41: constant | O41: constant | P41: constant | Q41: constant | R41: constant
A42: Hydrogeology_Porosity_param1
A43: Hydrogeology_Porosity_param2
A44: Hydrogeology_Porosity_param3
A47: Hydrogeology_Velocity | B47: m/s | C47: =(Hydrogeology_Hydraulic_Conductivity) * (Hydrogeology_Hydraulic_Gradient) / (Hydrogeology_Porosity) -> 4.811764706e-08 | D47: 2.118e-05
A48: Distribution | C48: constant | D48: constant | E48: constant | F48: constant | G48: constant | H48: constant | I48: constant | J48: constant | K48: constant | L48: constant | M48: constant | N48: constant | O48: constant | P48: constant | Q48: constant | R48: constant
A49: Hydrogeology_Velocity_param1
A50: Hydrogeology_Velocity_param2
A51: Hydrogeology_Velocity_param3
A54: Hydrogeology_Tortuosity | B54: [-] | C54: =Tortuosity -> 5 | D54: =Tortuosity -> 5
A55: Distribution | C55: constant | D55: constant | E55: constant | F55: constant | G55: constant | H55: constant | I55: constant | J55: constant | K55: constant | L55: constant | M55: constant | N55: constant | O55: constant | P55: constant | Q55: constant | R55: constant
A56: Hydrogeology_Tortuosity_param1
A57: Hydrogeology_Tortuosity_param2
A58: Hydrogeology_Tortuosity_param3

Sheet Attenuation
A1: ATTENUATION PARAMETERS
A3: Hydrogeological Units | C3: Attenuation Lay | D3: Beenham Grange
A5: General properties
A7: Attenuation_Dry_bulk_density | B7: kg/m3 | C7: =Attenuation_Layer_Bulk_Density -> 2000 | D7: =Beenham_Grange_Formation_Bulk_Density -> 1600
A8: Distribution | C8: constant | D8: constant | E8: constant | F8: constant | G8: constant | H8: constant | I8: constant | J8: constant | K8: constant | L8: constant | M8: constant | N8: constant | O8: constant | P8: constant | Q8: constant | R8: constant
A9: Attenuation_Dry_bulk_density_param1
A10: Attenuation_Dry_bulk_density_param2
A11: Attenuation_Dry_bulk_density_param3
A14: Attenuation_Fraction_organic_carbon | B14: [-]
A15: Distribution | C15: constant | D15: constant | E15: constant | F15: constant | G15: constant | H15: constant | I15: constant | J15: constant | K15: constant | L15: constant | M15: constant | N15: constant | O15: constant | P15: constant | Q15: constant | R15: constant
A16: Attenuation_Fraction_organic_carbon_param1
A17: Attenuation_Fraction_organic_carbon_param2
A18: Attenuation_Fraction_organic_carbon_param3
A22: Contaminant specific parameters
A24: =IF((Contaminants_Source_determinand_names Contaminants_Species1)=0,"Undefined",(Contaminants_Source_determinand_names Contaminants_Species1)) -> Arsenic
A26: Attenuation_Partition_Coefficient_Kd_Species_1 | B26: L/kg | C26: =AL_Kd_As -> 137 | D26: =BGF_Kd_As -> 25 | E26: =(Attenuation_Fraction_organic_carbon) * (Contaminants_Organic_Carbon_Water_Partition_Coefficient_Koc Contaminants_Species1) -> 0 | F26: =(Attenuation_Fraction_organic_carbon) * (Contaminants_Organic_Carbon_Water_Partition_Coefficient_Koc Contaminants_Species1) -> 0 | G26: =(Attenuation_Fraction_organic_carbon) * (Contaminants_Organic_Carbon_Water_Partition_Coefficient_Koc Contaminants_Species1) -> 0 | H26: =(Attenuation_Fraction_organic_carbon) * (Contaminants_Organic_Carbon_Water_Partition_Coefficient_Koc Contaminants_Species1) -> 0 | I26: =(Attenuation_Fraction_organic_carbon) * (Contaminants_Organic_Carbon_Water_Partition_Coefficient_Koc Contaminants_Species1) -> 0 | J26: =(Attenuation_Fraction_organic_carbon) * (Contaminants_Organic_Carbon_Water_Partition_Coefficient_Koc Contaminants_Species1) -> 0 | K26: =(Attenuation_Fraction_organic_carbon) * (Contaminants_Organic_Carbon_Water_Partition_Coefficient_Koc Contaminants_Species1) -> 0 | L26: =(Attenuation_Fraction_organic_carbon) * (Contaminants_Organic_Carbon_Water_Partition_Coefficient_Koc Contaminants_Species1) -> 0 | M26: =(Attenuation_Fraction_organic_carbon) * (Contaminants_Organic_Carbon_Water_Partition_Coefficient_Koc Contaminants_Species1) -> 0 | N26: =(Attenuation_Fraction_organic_carbon) * (Contaminants_Organic_Carbon_Water_Partition_Coefficient_Koc Contaminants_Species1) -> 0 | O26: =(Attenuation_Fraction_organic_carbon) * (Contaminants_Organic_Carbon_Water_Partition_Coefficient_Koc Contaminants_Species1) -> 0 | P26: =(Attenuation_Fraction_organic_carbon) * (Contaminants_Organic_Carbon_Water_Partition_Coefficient_Koc Contaminants_Species1) -> 0 | Q26: =(Attenuation_Fraction_organic_carbon) * (Contaminants_Organic_Carbon_Water_Partition_Coefficient_Koc Contaminants_Species1) -> 0 | R26: =(Attenuation_Fraction_organic_carbon) * (Contaminants_Organic_Carbon_Water_Partition_Coefficient_Koc Contaminants_Species1) -> 0
A27: Distribution | C27: constant | D27: constant | E27: constant | F27: constant | G27: constant | H27: constant | I27: constant | J27: constant | K27: constant | L27: constant | M27: constant | N27: constant | O27: constant | P27: constant | Q27: constant | R27: constant
A28: Attenuation_Partition_Coefficient_Kd_Species_1_param1
A29: Attenuation_Partition_Coefficient_Kd_Species_1_param2
A30: Attenuation_Partition_Coefficient_Kd_Species_1_param3
A33: Attenuation_Retardation_Species_1 | B33: [-] | C33: =1 + 0.001 * (Attenuation_Partition_Coefficient_Kd_Species_1) * (Attenuation_Dry_bulk_density) / (Hydrogeology_Porosity Hydrogeology!$C:$C) -> 5481 | D33: =1 + 0.001 * (Attenuation_Partition_Coefficient_Kd_Species_1) * (Attenuation_Dry_bulk_density) / (Hydrogeology_Porosity Hydrogeology!$D:$D) -> 201 | E33: =1 + 0.001 * (Attenuation_Partition_Coefficient_Kd_Species_1) * (Attenuation_Dry_bulk_density) / (Hydrogeology_Porosity Hydrogeology!$E:$E) ->  | F33: =1 + 0.001 * (Attenuation_Partition_Coefficient_Kd_Species_1) * (Attenuation_Dry_bulk_density) / (Hydrogeology_Porosity Hydrogeology!$F:$F) ->  | G33: =1 + 0.001 * (Attenuation_Partition_Coefficient_Kd_Species_1) * (Attenuation_Dry_bulk_density) / (Hydrogeology_Porosity Hydrogeology!$G:$G) ->  | H33: =1 + 0.001 * (Attenuation_Partition_Coefficient_Kd_Species_1) * (Attenuation_Dry_bulk_density) / (Hydrogeology_Porosity Hydrogeology!$H:$H) ->  | I33: =1 + 0.001 * (Attenuation_Partition_Coefficient_Kd_Species_1) * (Attenuation_Dry_bulk_density) / (Hydrogeology_Porosity Hydrogeology!$I:$I) ->  | J33: =1 + 0.001 * (Attenuation_Partition_Coefficient_Kd_Species_1) * (Attenuation_Dry_bulk_density) / (Hydrogeology_Porosity Hydrogeology!$J:$J) ->  | K33: =1 + 0.001 * (Attenuation_Partition_Coefficient_Kd_Species_1) * (Attenuation_Dry_bulk_density) / (Hydrogeology_Porosity Hydrogeology!$K:$K) ->  | L33: =1 + 0.001 * (Attenuation_Partition_Coefficient_Kd_Species_1) * (Attenuation_Dry_bulk_density) / (Hydrogeology_Porosity Hydrogeology!$L:$L) ->  | M33: =1 + 0.001 * (Attenuation_Partition_Coefficient_Kd_Species_1) * (Attenuation_Dry_bulk_density) / (Hydrogeology_Porosity Hydrogeology!$M:$M) ->  | N33: =1 + 0.001 * (Attenuation_Partition_Coefficient_Kd_Species_1) * (Attenuation_Dry_bulk_density) / (Hydrogeology_Porosity Hydrogeology!$N:$N) ->  | O33: =1 + 0.001 * (Attenuation_Partition_Coefficient_Kd_Species_1) * (Attenuation_Dry_bulk_density) / (Hydrogeology_Porosity Hydrogeology!$O:$O) ->  | P33: =1 + 0.001 * (Attenuation_Partition_Coefficient_Kd_Species_1) * (Attenuation_Dry_bulk_density) / (Hydrogeology_Porosity Hydrogeology!$P:$P) ->  | Q33: =1 + 0.001 * (Attenuation_Partition_Coefficient_Kd_Species_1) * (Attenuation_Dry_bulk_density) / (Hydrogeology_Porosity Hydrogeology!$Q:$Q) ->  | R33: =1 + 0.001 * (Attenuation_Partition_Coefficient_Kd_Species_1) * (Attenuation_Dry_bulk_density) / (Hydrogeology_Porosity Hydrogeology!$R:$R) -> 
A34: Distribution | C34: constant | D34: constant | E34: constant | F34: constant | G34: constant | H34: constant | I34: constant | J34: constant | K34: constant | L34: constant | M34: constant | N34: constant | O34: constant | P34: constant | Q34: constant | R34: constant
A35: Attenuation_Retardation_Species_1_param1
A36: Attenuation_Retardation_Species_1_param2
A37: Attenuation_Retardation_Species_1_param3
A40: Attenuation_Half_Life_Species_1 | B40: days | C40: No Decay | D40: No Decay | E40: No Decay | F40: No Decay | G40: No Decay | H40: No Decay | I40: No Decay | J40: No Decay | K40: No Decay | L40: No Decay | M40: No Decay | N40: No Decay | O40: No Decay | P40: No Decay | Q40: No Decay | R40: No Decay
A41: Distribution | C41: constant | D41: constant | E41: constant | F41: constant | G41: constant | H41: constant | I41: constant | J41: constant | K41: constant | L41: constant | M41: constant | N41: constant | O41: constant | P41: constant | Q41: constant | R41: constant
A42: Attenuation_Half_Life_Species_1_param1
A43: Attenuation_Half_Life_Species_1_param2
A44: Attenuation_Half_Life_Species_1_param3
A47: Attenuation_Decay_Coefficient_Species_1 | B47: 1/s | C47: =IF((_xlfn.SINGLE(Attenuation_Half_Life_Species_1))<>"No Decay", LN(2) / ((_xlfn.SINGLE(Attenuation_Half_Life_Species_1)) *_xlfn.SINGLE( s_per_day)),0) -> 0 | D47: 0 | E47: 0 | F47: 0 | G47: 0 | H47: 0 | I47: 0 | J47: 0 | K47: 0 | L47: 0 | M47: 0 | N47: 0 | O47: 0 | P47: 0 | Q47: 0 | R47: 0
A48: Distribution | C48: constant | D48: constant | E48: constant | F48: constant | G48: constant | H48: constant | I48: constant | J48: constant | K48: constant | L48: constant | M48: constant | N48: constant | O48: constant | P48: constant | Q48: constant | R48: constant
A49: Attenuation_Decay_Coefficient_Species_1_param1
A50: Attenuation_Decay_Coefficient_Species_1_param2
A51: Attenuation_Decay_Coefficient_Species_1_param3
A54: =IF((Contaminants_Source_determinand_names Contaminants_Species2)=0,"Undefined",(Contaminants_Source_determinand_names Contaminants_Species2)) -> Cadmium
A56: Attenuation_Partition_Coefficient_Kd_Species_2 | B56: L/kg | C56: =AL_Kd_Cd -> 222 | D56: =BGF_Kd_Cd -> 74 | E56: =(Attenuation_Fraction_organic_carbon) * (Contaminants_Organic_Carbon_Water_Partition_Coefficient_Koc Contaminants_Species2) -> 0 | F56: =(Attenuation_Fraction_organic_carbon) * (Contaminants_Organic_Carbon_Water_Partition_Coefficient_Koc Contaminants_Species2) -> 0 | G56: =(Attenuation_Fraction_organic_carbon) * (Contaminants_Organic_Carbon_Water_Partition_Coefficient_Koc Contaminants_Species2) -> 0 | H56: =(Attenuation_Fraction_organic_carbon) * (Contaminants_Organic_Carbon_Water_Partition_Coefficient_Koc Contaminants_Species2) -> 0 | I56: =(Attenuation_Fraction_organic_carbon) * (Contaminants_Organic_Carbon_Water_Partition_Coefficient_Koc Contaminants_Species2) -> 0 | J56: =(Attenuation_Fraction_organic_carbon) * (Contaminants_Organic_Carbon_Water_Partition_Coefficient_Koc Contaminants_Species2) -> 0 | K56: =(Attenuation_Fraction_organic_carbon) * (Contaminants_Organic_Carbon_Water_Partition_Coefficient_Koc Contaminants_Species2) -> 0 | L56: =(Attenuation_Fraction_organic_carbon) * (Contaminants_Organic_Carbon_Water_Partition_Coefficient_Koc Contaminants_Species2) -> 0 | M56: =(Attenuation_Fraction_organic_carbon) * (Contaminants_Organic_Carbon_Water_Partition_Coefficient_Koc Contaminants_Species2) -> 0 | N56: =(Attenuation_Fraction_organic_carbon) * (Contaminants_Organic_Carbon_Water_Partition_Coefficient_Koc Contaminants_Species2) -> 0 | O56: =(Attenuation_Fraction_organic_carbon) * (Contaminants_Organic_Carbon_Water_Partition_Coefficient_Koc Contaminants_Species2) -> 0 | P56: =(Attenuation_Fraction_organic_carbon) * (Contaminants_Organic_Carbon_Water_Partition_Coefficient_Koc Contaminants_Species2) -> 0 | Q56: =(Attenuation_Fraction_organic_carbon) * (Contaminants_Organic_Carbon_Water_Partition_Coefficient_Koc Contaminants_Species2) -> 0 | R56: =(Attenuation_Fraction_organic_carbon) * (Contaminants_Organic_Carbon_Water_Partition_Coefficient_Koc Contaminants_Species2) -> 0
A57: Distribution | C57: constant | D57: constant | E57: constant | F57: constant | G57: constant | H57: constant | I57: constant | J57: constant | K57: constant | L57: constant | M57: constant | N57: constant | O57: constant | P57: constant | Q57: constant | R57: constant
A58: Attenuation_Partition_Coefficient_Kd_Species_2_param1
A59: Attenuation_Partition_Coefficient_Kd_Species_2_param2
A60: Attenuation_Partition_Coefficient_Kd_Species_2_param3
A63: Attenuation_Retardation_Species_2 | B63: [-] | C63: =1 + 0.001 * (Attenuation_Partition_Coefficient_Kd_Species_2) * (Attenuation_Dry_bulk_density) / (Hydrogeology_Porosity Hydrogeology!$C:$C) -> 8881 | D63: =1 + 0.001 * (Attenuation_Partition_Coefficient_Kd_Species_2) * (Attenuation_Dry_bulk_density) / (Hydrogeology_Porosity Hydrogeology!$D:$D) -> 593 | E63: =1 + 0.001 * (Attenuation_Partition_Coefficient_Kd_Species_2) * (Attenuation_Dry_bulk_density) / (Hydrogeology_Porosity Hydrogeology!$E:$E) ->  | F63: =1 + 0.001 * (Attenuation_Partition_Coefficient_Kd_Species_2) * (Attenuation_Dry_bulk_density) / (Hydrogeology_Porosity Hydrogeology!$F:$F) ->  | G63: =1 + 0.001 * (Attenuation_Partition_Coefficient_Kd_Species_2) * (Attenuation_Dry_bulk_density) / (Hydrogeology_Porosity Hydrogeology!$G:$G) ->  | H63: =1 + 0.001 * (Attenuation_Partition_Coefficient_Kd_Species_2) * (Attenuation_Dry_bulk_density) / (Hydrogeology_Porosity Hydrogeology!$H:$H) ->  | I63: =1 + 0.001 * (Attenuation_Partition_Coefficient_Kd_Species_2) * (Attenuation_Dry_bulk_density) / (Hydrogeology_Porosity Hydrogeology!$I:$I) ->  | J63: =1 + 0.001 * (Attenuation_Partition_Coefficient_Kd_Species_2) * (Attenuation_Dry_bulk_density) / (Hydrogeology_Porosity Hydrogeology!$J:$J) ->  | K63: =1 + 0.001 * (Attenuation_Partition_Coefficient_Kd_Species_2) * (Attenuation_Dry_bulk_density) / (Hydrogeology_Porosity Hydrogeology!$K:$K) ->  | L63: =1 + 0.001 * (Attenuation_Partition_Coefficient_Kd_Species_2) * (Attenuation_Dry_bulk_density) / (Hydrogeology_Porosity Hydrogeology!$L:$L) ->  | M63: =1 + 0.001 * (Attenuation_Partition_Coefficient_Kd_Species_2) * (Attenuation_Dry_bulk_density) / (Hydrogeology_Porosity Hydrogeology!$M:$M) ->  | N63: =1 + 0.001 * (Attenuation_Partition_Coefficient_Kd_Species_2) * (Attenuation_Dry_bulk_density) / (Hydrogeology_Porosity Hydrogeology!$N:$N) ->  | O63: =1 + 0.001 * (Attenuation_Partition_Coefficient_Kd_Species_2) * (Attenuation_Dry_bulk_density) / (Hydrogeology_Porosity Hydrogeology!$O:$O) ->  | P63: =1 + 0.001 * (Attenuation_Partition_Coefficient_Kd_Species_2) * (Attenuation_Dry_bulk_density) / (Hydrogeology_Porosity Hydrogeology!$P:$P) ->  | Q63: =1 + 0.001 * (Attenuation_Partition_Coefficient_Kd_Species_2) * (Attenuation_Dry_bulk_density) / (Hydrogeology_Porosity Hydrogeology!$Q:$Q) ->  | R63: =1 + 0.001 * (Attenuation_Partition_Coefficient_Kd_Species_2) * (Attenuation_Dry_bulk_density) / (Hydrogeology_Porosity Hydrogeology!$R:$R) -> 
A64: Distribution | C64: constant | D64: constant | E64: constant | F64: constant | G64: constant | H64: constant | I64: constant | J64: constant | K64: constant | L64: constant | M64: constant | N64: constant | O64: constant | P64: constant | Q64: constant | R64: constant
A65: Attenuation_Retardation_Species_2_param1
A66: Attenuation_Retardation_Species_2_param2
A67: Attenuation_Retardation_Species_2_param3
A70: Attenuation_Half_Life_Species_2 | B70: days | C70: No Decay | D70: No Decay | E70: No Decay | F70: No Decay | G70: No Decay | H70: No Decay | I70: No Decay | J70: No Decay | K70: No Decay | L70: No Decay | M70: No Decay | N70: No Decay | O70: No Decay | P70: No Decay | Q70: No Decay | R70: No Decay
A71: Distribution | C71: constant | D71: constant | E71: constant | F71: constant | G71: constant | H71: constant | I71: constant | J71: constant | K71: constant | L71: constant | M71: constant | N71: constant | O71: constant | P71: constant | Q71: constant | R71: constant
A72: Attenuation_Half_Life_Species_2_param1
A73: Attenuation_Half_Life_Species_2_param2
A74: Attenuation_Half_Life_Species_2_param3
A77: Attenuation_Decay_Coefficient_Species_2 | B77: 1/s | C77: =IF((_xlfn.SINGLE(Attenuation_Half_Life_Species_2))<>"No Decay", LN(2) / ((_xlfn.SINGLE(Attenuation_Half_Life_Species_2)) *_xlfn.SINGLE( s_per_day)),0) -> 0 | D77: 0 | E77: 0 | F77: 0 | G77: 0 | H77: 0 | I77: 0 | J77: 0 | K77: 0 | L77: 0 | M77: 0 | N77: 0 | O77: 0 | P77: 0 | Q77: 0 | R77: 0
A78: Distribution | C78: constant | D78: constant | E78: constant | F78: constant | G78: constant | H78: constant | I78: constant | J78: constant | K78: constant | L78: constant | M78: constant | N78: constant | O78: constant | P78: constant | Q78: constant | R78: constant
A79: Attenuation_Decay_Coefficient_Species_2_param1
A80: Attenuation_Decay_Coefficient_Species_2_param2
A81: Attenuation_Decay_Coefficient_Species_2_param3
A84: =IF((Contaminants_Source_determinand_names Contaminants_Species3)=0,"Undefined",(Contaminants_Source_determinand_names Contaminants_Species3)) -> Chromium
A86: Attenuation_Partition_Coefficient_Kd_Species_3 | B86: L/kg | C86: =AL_Kd_Cr -> 966 | D86: =BGF_Kd_Cr -> 67 | E86: =(Attenuation_Fraction_organic_carbon) * (Contaminants_Organic_Carbon_Water_Partition_Coefficient_Koc Contaminants_Species3) -> 0 | F86: =(Attenuation_Fraction_organic_carbon) * (Contaminants_Organic_Carbon_Water_Partition_Coefficient_Koc Contaminants_Species3) -> 0 | G86: =(Attenuation_Fraction_organic_carbon) * (Contaminants_Organic_Carbon_Water_Partition_Coefficient_Koc Contaminants_Species3) -> 0 | H86: =(Attenuation_Fraction_organic_carbon) * (Contaminants_Organic_Carbon_Water_Partition_Coefficient_Koc Contaminants_Species3) -> 0 | I86: =(Attenuation_Fraction_organic_carbon) * (Contaminants_Organic_Carbon_Water_Partition_Coefficient_Koc Contaminants_Species3) -> 0 | J86: =(Attenuation_Fraction_organic_carbon) * (Contaminants_Organic_Carbon_Water_Partition_Coefficient_Koc Contaminants_Species3) -> 0 | K86: =(Attenuation_Fraction_organic_carbon) * (Contaminants_Organic_Carbon_Water_Partition_Coefficient_Koc Contaminants_Species3) -> 0 | L86: =(Attenuation_Fraction_organic_carbon) * (Contaminants_Organic_Carbon_Water_Partition_Coefficient_Koc Contaminants_Species3) -> 0 | M86: =(Attenuation_Fraction_organic_carbon) * (Contaminants_Organic_Carbon_Water_Partition_Coefficient_Koc Contaminants_Species3) -> 0 | N86: =(Attenuation_Fraction_organic_carbon) * (Contaminants_Organic_Carbon_Water_Partition_Coefficient_Koc Contaminants_Species3) -> 0 | O86: =(Attenuation_Fraction_organic_carbon) * (Contaminants_Organic_Carbon_Water_Partition_Coefficient_Koc Contaminants_Species3) -> 0 | P86: =(Attenuation_Fraction_organic_carbon) * (Contaminants_Organic_Carbon_Water_Partition_Coefficient_Koc Contaminants_Species3) -> 0 | Q86: =(Attenuation_Fraction_organic_carbon) * (Contaminants_Organic_Carbon_Water_Partition_Coefficient_Koc Contaminants_Species3) -> 0 | R86: =(Attenuation_Fraction_organic_carbon) * (Contaminants_Organic_Carbon_Water_Partition_Coefficient_Koc Contaminants_Species3) -> 0
A87: Distribution | C87: constant | D87: constant | E87: constant | F87: constant | G87: constant | H87: constant | I87: constant | J87: constant | K87: constant | L87: constant | M87: constant | N87: constant | O87: constant | P87: constant | Q87: constant | R87: constant
A88: Attenuation_Partition_Coefficient_Kd_Species_3_param1
A89: Attenuation_Partition_Coefficient_Kd_Species_3_param2
A90: Attenuation_Partition_Coefficient_Kd_Species_3_param3
A93: Attenuation_Retardation_Species_3 | B93: [-] | C93: =1 + 0.001 * (Attenuation_Partition_Coefficient_Kd_Species_3) * (Attenuation_Dry_bulk_density) / (Hydrogeology_Porosity Hydrogeology!$C:$C) -> 38641 | D93: =1 + 0.001 * (Attenuation_Partition_Coefficient_Kd_Species_3) * (Attenuation_Dry_bulk_density) / (Hydrogeology_Porosity Hydrogeology!$D:$D) -> 537 | E93: =1 + 0.001 * (Attenuation_Partition_Coefficient_Kd_Species_3) * (Attenuation_Dry_bulk_density) / (Hydrogeology_Porosity Hydrogeology!$E:$E) ->  | F93: =1 + 0.001 * (Attenuation_Partition_Coefficient_Kd_Species_3) * (Attenuation_Dry_bulk_density) / (Hydrogeology_Porosity Hydrogeology!$F:$F) ->  | G93: =1 + 0.001 * (Attenuation_Partition_Coefficient_Kd_Species_3) * (Attenuation_Dry_bulk_density) / (Hydrogeology_Porosity Hydrogeology!$G:$G) ->  | H93: =1 + 0.001 * (Attenuation_Partition_Coefficient_Kd_Species_3) * (Attenuation_Dry_bulk_density) / (Hydrogeology_Porosity Hydrogeology!$H:$H) ->  | I93: =1 + 0.001 * (Attenuation_Partition_Coefficient_Kd_Species_3) * (Attenuation_Dry_bulk_density) / (Hydrogeology_Porosity Hydrogeology!$I:$I) ->  | J93: =1 + 0.001 * (Attenuation_Partition_Coefficient_Kd_Species_3) * (Attenuation_Dry_bulk_density) / (Hydrogeology_Porosity Hydrogeology!$J:$J) ->  | K93: =1 + 0.001 * (Attenuation_Partition_Coefficient_Kd_Species_3) * (Attenuation_Dry_bulk_density) / (Hydrogeology_Porosity Hydrogeology!$K:$K) ->  | L93: =1 + 0.001 * (Attenuation_Partition_Coefficient_Kd_Species_3) * (Attenuation_Dry_bulk_density) / (Hydrogeology_Porosity Hydrogeology!$L:$L) ->  | M93: =1 + 0.001 * (Attenuation_Partition_Coefficient_Kd_Species_3) * (Attenuation_Dry_bulk_density) / (Hydrogeology_Porosity Hydrogeology!$M:$M) ->  | N93: =1 + 0.001 * (Attenuation_Partition_Coefficient_Kd_Species_3) * (Attenuation_Dry_bulk_density) / (Hydrogeology_Porosity Hydrogeology!$N:$N) ->  | O93: =1 + 0.001 * (Attenuation_Partition_Coefficient_Kd_Species_3) * (Attenuation_Dry_bulk_density) / (Hydrogeology_Porosity Hydrogeology!$O:$O) ->  | P93: =1 + 0.001 * (Attenuation_Partition_Coefficient_Kd_Species_3) * (Attenuation_Dry_bulk_density) / (Hydrogeology_Porosity Hydrogeology!$P:$P) ->  | Q93: =1 + 0.001 * (Attenuation_Partition_Coefficient_Kd_Species_3) * (Attenuation_Dry_bulk_density) / (Hydrogeology_Porosity Hydrogeology!$Q:$Q) ->  | R93: =1 + 0.001 * (Attenuation_Partition_Coefficient_Kd_Species_3) * (Attenuation_Dry_bulk_density) / (Hydrogeology_Porosity Hydrogeology!$R:$R) -> 
A94: Distribution | C94: constant | D94: constant | E94: constant | F94: constant | G94: constant | H94: constant | I94: constant | J94: constant | K94: constant | L94: constant | M94: constant | N94: constant | O94: constant | P94: constant | Q94: constant | R94: constant
A95: Attenuation_Retardation_Species_3_param1
A96: Attenuation_Retardation_Species_3_param2
A97: Attenuation_Retardation_Species_3_param3
A100: Attenuation_Half_Life_Species_3 | B100: days | C100: No Decay | D100: No Decay | E100: No Decay | F100: No Decay | G100: No Decay | H100: No Decay | I100: No Decay | J100: No Decay | K100: No Decay | L100: No Decay | M100: No Decay | N100: No Decay | O100: No Decay | P100: No Decay | Q100: No Decay | R100: No Decay
A101: Distribution | C101: constant | D101: constant | E101: constant | F101: constant | G101: constant | H101: constant | I101: constant | J101: constant | K101: constant | L101: constant | M101: constant | N101: constant | O101: constant | P101: constant | Q101: constant | R101: constant
A102: Attenuation_Half_Life_Species_3_param1
A103: Attenuation_Half_Life_Species_3_param2
A104: Attenuation_Half_Life_Species_3_param3
A107: Attenuation_Decay_Coefficient_Species_3 | B107: 1/s | C107: =IF((_xlfn.SINGLE(Attenuation_Half_Life_Species_3))<>"No Decay", LN(2) / ((_xlfn.SINGLE(Attenuation_Half_Life_Species_3)) *_xlfn.SINGLE( s_per_day)),0) -> 0 | D107: 0 | E107: 0 | F107: 0 | G107: 0 | H107: 0 | I107: 0 | J107: 0 | K107: 0 | L107: 0 | M107: 0 | N107: 0 | O107: 0 | P107: 0 | Q107: 0 | R107: 0
A108: Distribution | C108: constant | D108: constant | E108: constant | F108: constant | G108: constant | H108: constant | I108: constant | J108: constant | K108: constant | L108: constant | M108: constant | N108: constant | O108: constant | P108: constant | Q108: constant | R108: constant
A109: Attenuation_Decay_Coefficient_Species_3_param1
A110: Attenuation_Decay_Coefficient_Species_3_param2
A111: Attenuation_Decay_Coefficient_Species_3_param3
A114: =IF((Contaminants_Source_determinand_names Contaminants_Species4)=0,"Undefined",(Contaminants_Source_determinand_names Contaminants_Species4)) -> Copper
A116: Attenuation_Partition_Coefficient_Kd_Species_4 | B116: L/kg | C116: =AL_Kd_Cu -> 126.8 | D116: =BGF_Kd_Cu -> 295 | E116: =(Attenuation_Fraction_organic_carbon) * (Contaminants_Organic_Carbon_Water_Partition_Coefficient_Koc Contaminants_Species4) -> 0 | F116: =(Attenuation_Fraction_organic_carbon) * (Contaminants_Organic_Carbon_Water_Partition_Coefficient_Koc Contaminants_Species4) -> 0 | G116: =(Attenuation_Fraction_organic_carbon) * (Contaminants_Organic_Carbon_Water_Partition_Coefficient_Koc Contaminants_Species4) -> 0 | H116: =(Attenuation_Fraction_organic_carbon) * (Contaminants_Organic_Carbon_Water_Partition_Coefficient_Koc Contaminants_Species4) -> 0 | I116: =(Attenuation_Fraction_organic_carbon) * (Contaminants_Organic_Carbon_Water_Partition_Coefficient_Koc Contaminants_Species4) -> 0 | J116: =(Attenuation_Fraction_organic_carbon) * (Contaminants_Organic_Carbon_Water_Partition_Coefficient_Koc Contaminants_Species4) -> 0 | K116: =(Attenuation_Fraction_organic_carbon) * (Contaminants_Organic_Carbon_Water_Partition_Coefficient_Koc Contaminants_Species4) -> 0 | L116: =(Attenuation_Fraction_organic_carbon) * (Contaminants_Organic_Carbon_Water_Partition_Coefficient_Koc Contaminants_Species4) -> 0 | M116: =(Attenuation_Fraction_organic_carbon) * (Contaminants_Organic_Carbon_Water_Partition_Coefficient_Koc Contaminants_Species4) -> 0 | N116: =(Attenuation_Fraction_organic_carbon) * (Contaminants_Organic_Carbon_Water_Partition_Coefficient_Koc Contaminants_Species4) -> 0 | O116: =(Attenuation_Fraction_organic_carbon) * (Contaminants_Organic_Carbon_Water_Partition_Coefficient_Koc Contaminants_Species4) -> 0 | P116: =(Attenuation_Fraction_organic_carbon) * (Contaminants_Organic_Carbon_Water_Partition_Coefficient_Koc Contaminants_Species4) -> 0 | Q116: =(Attenuation_Fraction_organic_carbon) * (Contaminants_Organic_Carbon_Water_Partition_Coefficient_Koc Contaminants_Species4) -> 0 | R116: =(Attenuation_Fraction_organic_carbon) * (Contaminants_Organic_Carbon_Water_Partition_Coefficient_Koc Contaminants_Species4) -> 0
A117: Distribution | C117: constant | D117: constant | E117: constant | F117: constant | G117: constant | H117: constant | I117: constant | J117: constant | K117: constant | L117: constant | M117: constant | N117: constant | O117: constant | P117: constant | Q117: constant | R117: constant
A118: Attenuation_Partition_Coefficient_Kd_Species_4_param1
A119: Attenuation_Partition_Coefficient_Kd_Species_4_param2
A120: Attenuation_Partition_Coefficient_Kd_Species_4_param3
A123: Attenuation_Retardation_Species_4 | B123: [-] | C123: =1 + 0.001 * (Attenuation_Partition_Coefficient_Kd_Species_4) * (Attenuation_Dry_bulk_density) / (Hydrogeology_Porosity Hydrogeology!$C:$C) -> 5073 | D123: =1 + 0.001 * (Attenuation_Partition_Coefficient_Kd_Species_4) * (Attenuation_Dry_bulk_density) / (Hydrogeology_Porosity Hydrogeology!$D:$D) -> 2361 | E123: =1 + 0.001 * (Attenuation_Partition_Coefficient_Kd_Species_4) * (Attenuation_Dry_bulk_density) / (Hydrogeology_Porosity Hydrogeology!$E:$E) ->  | F123: =1 + 0.001 * (Attenuation_Partition_Coefficient_Kd_Species_4) * (Attenuation_Dry_bulk_density) / (Hydrogeology_Porosity Hydrogeology!$F:$F) ->  | G123: =1 + 0.001 * (Attenuation_Partition_Coefficient_Kd_Species_4) * (Attenuation_Dry_bulk_density) / (Hydrogeology_Porosity Hydrogeology!$G:$G) ->  | H123: =1 + 0.001 * (Attenuation_Partition_Coefficient_Kd_Species_4) * (Attenuation_Dry_bulk_density) / (Hydrogeology_Porosity Hydrogeology!$H:$H) ->  | I123: =1 + 0.001 * (Attenuation_Partition_Coefficient_Kd_Species_4) * (Attenuation_Dry_bulk_density) / (Hydrogeology_Porosity Hydrogeology!$I:$I) ->  | J123: =1 + 0.001 * (Attenuation_Partition_Coefficient_Kd_Species_4) * (Attenuation_Dry_bulk_density) / (Hydrogeology_Porosity Hydrogeology!$J:$J) ->  | K123: =1 + 0.001 * (Attenuation_Partition_Coefficient_Kd_Species_4) * (Attenuation_Dry_bulk_density) / (Hydrogeology_Porosity Hydrogeology!$K:$K) ->  | L123: =1 + 0.001 * (Attenuation_Partition_Coefficient_Kd_Species_4) * (Attenuation_Dry_bulk_density) / (Hydrogeology_Porosity Hydrogeology!$L:$L) ->  | M123: =1 + 0.001 * (Attenuation_Partition_Coefficient_Kd_Species_4) * (Attenuation_Dry_bulk_density) / (Hydrogeology_Porosity Hydrogeology!$M:$M) ->  | N123: =1 + 0.001 * (Attenuation_Partition_Coefficient_Kd_Species_4) * (Attenuation_Dry_bulk_density) / (Hydrogeology_Porosity Hydrogeology!$N:$N) ->  | O123: =1 + 0.001 * (Attenuation_Partition_Coefficient_Kd_Species_4) * (Attenuation_Dry_bulk_density) / (Hydrogeology_Porosity Hydrogeology!$O:$O) ->  | P123: =1 + 0.001 * (Attenuation_Partition_Coefficient_Kd_Species_4) * (Attenuation_Dry_bulk_density) / (Hydrogeology_Porosity Hydrogeology!$P:$P) ->  | Q123: =1 + 0.001 * (Attenuation_Partition_Coefficient_Kd_Species_4) * (Attenuation_Dry_bulk_density) / (Hydrogeology_Porosity Hydrogeology!$Q:$Q) ->  | R123: =1 + 0.001 * (Attenuation_Partition_Coefficient_Kd_Species_4) * (Attenuation_Dry_bulk_density) / (Hydrogeology_Porosity Hydrogeology!$R:$R) -> 
A124: Distribution | C124: constant | D124: constant | E124: constant | F124: constant | G124: constant | H124: constant | I124: constant | J124: constant | K124: constant | L124: constant | M124: constant | N124: constant | O124: constant | P124: constant | Q124: constant | R124: constant
A125: Attenuation_Retardation_Species_4_param1
A126: Attenuation_Retardation_Species_4_param2
A127: Attenuation_Retardation_Species_4_param3
A130: Attenuation_Half_Life_Species_4 | B130: days | C130: No Decay | D130: No Decay | E130: No Decay | F130: No Decay | G130: No Decay | H130: No Decay | I130: No Decay | J130: No Decay | K130: No Decay | L130: No Decay | M130: No Decay | N130: No Decay | O130: No Decay | P130: No Decay | Q130: No Decay | R130: No Decay
A131: Distribution | C131: constant | D131: constant | E131: constant | F131: constant | G131: constant | H131: constant | I131: constant | J131: constant | K131: constant | L131: constant | M131: constant | N131: constant | O131: constant | P131: constant | Q131: constant | R131: constant
A132: Attenuation_Half_Life_Species_4_param1
A133: Attenuation_Half_Life_Species_4_param2
A134: Attenuation_Half_Life_Species_4_param3
A137: Attenuation_Decay_Coefficient_Species_4 | B137: 1/s | C137: =IF((_xlfn.SINGLE(Attenuation_Half_Life_Species_4))<>"No Decay", LN(2) / ((_xlfn.SINGLE(Attenuation_Half_Life_Species_4)) *_xlfn.SINGLE( s_per_day)),0) -> 0 | D137: 0 | E137: 0 | F137: 0 | G137: 0 | H137: 0 | I137: 0 | J137: 0 | K137: 0 | L137: 0 | M137: 0 | N137: 0 | O137: 0 | P137: 0 | Q137: 0 | R137: 0
A138: Distribution | C138: constant | D138: constant | E138: constant | F138: constant | G138: constant | H138: constant | I138: constant | J138: constant | K138: constant | L138: constant | M138: constant | N138: constant | O138: constant | P138: constant | Q138: constant | R138: constant
A139: Attenuation_Decay_Coefficient_Species_4_param1
A140: Attenuation_Decay_Coefficient_Species_4_param2
A141: Attenuation_Decay_Coefficient_Species_4_param3
A144: =IF((Contaminants_Source_determinand_names Contaminants_Species5)=0,"Undefined",(Contaminants_Source_determinand_names Contaminants_Species5)) -> Mercury
A146: Attenuation_Partition_Coefficient_Kd_Species_5 | B146: L/kg | C146: =AL_Kd_Hg -> 2142 | D146: =BGF_Kd_Hg -> 450 | E146: =(Attenuation_Fraction_organic_carbon) * (Contaminants_Organic_Carbon_Water_Partition_Coefficient_Koc Contaminants_Species5) -> 0 | F146: =(Attenuation_Fraction_organic_carbon) * (Contaminants_Organic_Carbon_Water_Partition_Coefficient_Koc Contaminants_Species5) -> 0 | G146: =(Attenuation_Fraction_organic_carbon) * (Contaminants_Organic_Carbon_Water_Partition_Coefficient_Koc Contaminants_Species5) -> 0 | H146: =(Attenuation_Fraction_organic_carbon) * (Contaminants_Organic_Carbon_Water_Partition_Coefficient_Koc Contaminants_Species5) -> 0 | I146: =(Attenuation_Fraction_organic_carbon) * (Contaminants_Organic_Carbon_Water_Partition_Coefficient_Koc Contaminants_Species5) -> 0 | J146: =(Attenuation_Fraction_organic_carbon) * (Contaminants_Organic_Carbon_Water_Partition_Coefficient_Koc Contaminants_Species5) -> 0 | K146: =(Attenuation_Fraction_organic_carbon) * (Contaminants_Organic_Carbon_Water_Partition_Coefficient_Koc Contaminants_Species5) -> 0 | L146: =(Attenuation_Fraction_organic_carbon) * (Contaminants_Organic_Carbon_Water_Partition_Coefficient_Koc Contaminants_Species5) -> 0 | M146: =(Attenuation_Fraction_organic_carbon) * (Contaminants_Organic_Carbon_Water_Partition_Coefficient_Koc Contaminants_Species5) -> 0 | N146: =(Attenuation_Fraction_organic_carbon) * (Contaminants_Organic_Carbon_Water_Partition_Coefficient_Koc Contaminants_Species5) -> 0 | O146: =(Attenuation_Fraction_organic_carbon) * (Contaminants_Organic_Carbon_Water_Partition_Coefficient_Koc Contaminants_Species5) -> 0 | P146: =(Attenuation_Fraction_organic_carbon) * (Contaminants_Organic_Carbon_Water_Partition_Coefficient_Koc Contaminants_Species5) -> 0 | Q146: =(Attenuation_Fraction_organic_carbon) * (Contaminants_Organic_Carbon_Water_Partition_Coefficient_Koc Contaminants_Species5) -> 0 | R146: =(Attenuation_Fraction_organic_carbon) * (Contaminants_Organic_Carbon_Water_Partition_Coefficient_Koc Contaminants_Species5) -> 0
A147: Distribution | C147: constant | D147: constant | E147: constant | F147: constant | G147: constant | H147: constant | I147: constant | J147: constant | K147: constant | L147: constant | M147: constant | N147: constant | O147: constant | P147: constant | Q147: constant | R147: constant
A148: Attenuation_Partition_Coefficient_Kd_Species_5_param1
A149: Attenuation_Partition_Coefficient_Kd_Species_5_param2
A150: Attenuation_Partition_Coefficient_Kd_Species_5_param3
A153: Attenuation_Retardation_Species_5 | B153: [-] | C153: =1 + 0.001 * (Attenuation_Partition_Coefficient_Kd_Species_5) * (Attenuation_Dry_bulk_density) / (Hydrogeology_Porosity Hydrogeology!$C:$C) -> 85681 | D153: =1 + 0.001 * (Attenuation_Partition_Coefficient_Kd_Species_5) * (Attenuation_Dry_bulk_density) / (Hydrogeology_Porosity Hydrogeology!$D:$D) -> 3601 | E153: =1 + 0.001 * (Attenuation_Partition_Coefficient_Kd_Species_5) * (Attenuation_Dry_bulk_density) / (Hydrogeology_Porosity Hydrogeology!$E:$E) ->  | F153: =1 + 0.001 * (Attenuation_Partition_Coefficient_Kd_Species_5) * (Attenuation_Dry_bulk_density) / (Hydrogeology_Porosity Hydrogeology!$F:$F) ->  | G153: =1 + 0.001 * (Attenuation_Partition_Coefficient_Kd_Species_5) * (Attenuation_Dry_bulk_density) / (Hydrogeology_Porosity Hydrogeology!$G:$G) ->  | H153: =1 + 0.001 * (Attenuation_Partition_Coefficient_Kd_Species_5) * (Attenuation_Dry_bulk_density) / (Hydrogeology_Porosity Hydrogeology!$H:$H) ->  | I153: =1 + 0.001 * (Attenuation_Partition_Coefficient_Kd_Species_5) * (Attenuation_Dry_bulk_density) / (Hydrogeology_Porosity Hydrogeology!$I:$I) ->  | J153: =1 + 0.001 * (Attenuation_Partition_Coefficient_Kd_Species_5) * (Attenuation_Dry_bulk_density) / (Hydrogeology_Porosity Hydrogeology!$J:$J) ->  | K153: =1 + 0.001 * (Attenuation_Partition_Coefficient_Kd_Species_5) * (Attenuation_Dry_bulk_density) / (Hydrogeology_Porosity Hydrogeology!$K:$K) ->  | L153: =1 + 0.001 * (Attenuation_Partition_Coefficient_Kd_Species_5) * (Attenuation_Dry_bulk_density) / (Hydrogeology_Porosity Hydrogeology!$L:$L) ->  | M153: =1 + 0.001 * (Attenuation_Partition_Coefficient_Kd_Species_5) * (Attenuation_Dry_bulk_density) / (Hydrogeology_Porosity Hydrogeology!$M:$M) ->  | N153: =1 + 0.001 * (Attenuation_Partition_Coefficient_Kd_Species_5) * (Attenuation_Dry_bulk_density) / (Hydrogeology_Porosity Hydrogeology!$N:$N) ->  | O153: =1 + 0.001 * (Attenuation_Partition_Coefficient_Kd_Species_5) * (Attenuation_Dry_bulk_density) / (Hydrogeology_Porosity Hydrogeology!$O:$O) ->  | P153: =1 + 0.001 * (Attenuation_Partition_Coefficient_Kd_Species_5) * (Attenuation_Dry_bulk_density) / (Hydrogeology_Porosity Hydrogeology!$P:$P) ->  | Q153: =1 + 0.001 * (Attenuation_Partition_Coefficient_Kd_Species_5) * (Attenuation_Dry_bulk_density) / (Hydrogeology_Porosity Hydrogeology!$Q:$Q) ->  | R153: =1 + 0.001 * (Attenuation_Partition_Coefficient_Kd_Species_5) * (Attenuation_Dry_bulk_density) / (Hydrogeology_Porosity Hydrogeology!$R:$R) -> 
A154: Distribution | C154: constant | D154: constant | E154: constant | F154: constant | G154: constant | H154: constant | I154: constant | J154: constant | K154: constant | L154: constant | M154: constant | N154: constant | O154: constant | P154: constant | Q154: constant | R154: constant
A155: Attenuation_Retardation_Species_5_param1
A156: Attenuation_Retardation_Species_5_param2
A157: Attenuation_Retardation_Species_5_param3
A160: Attenuation_Half_Life_Species_5 | B160: days | C160: No Decay | D160: No Decay | E160: No Decay | F160: No Decay | G160: No Decay | H160: No Decay | I160: No Decay | J160: No Decay | K160: No Decay | L160: No Decay | M160: No Decay | N160: No Decay | O160: No Decay | P160: No Decay | Q160: No Decay | R160: No Decay
A161: Distribution | C161: constant | D161: constant | E161: constant | F161: constant | G161: constant | H161: constant | I161: constant | J161: constant | K161: constant | L161: constant | M161: constant | N161: constant | O161: constant | P161: constant | Q161: constant | R161: constant
A162: Attenuation_Half_Life_Species_5_param1
A163: Attenuation_Half_Life_Species_5_param2
A164: Attenuation_Half_Life_Species_5_param3
A167: Attenuation_Decay_Coefficient_Species_5 | B167: 1/s | C167: =IF((_xlfn.SINGLE(Attenuation_Half_Life_Species_5))<>"No Decay", LN(2) / ((_xlfn.SINGLE(Attenuation_Half_Life_Species_5)) *_xlfn.SINGLE( s_per_day)),0) -> 0 | D167: 0 | E167: 0 | F167: 0 | G167: 0 | H167: 0 | I167: 0 | J167: 0 | K167: 0 | L167: 0 | M167: 0 | N167: 0 | O167: 0 | P167: 0 | Q167: 0 | R167: 0
A168: Distribution | C168: constant | D168: constant | E168: constant | F168: constant | G168: constant | H168: constant | I168: constant | J168: constant | K168: constant | L168: constant | M168: constant | N168: constant | O168: constant | P168: constant | Q168: constant | R168: constant
A169: Attenuation_Decay_Coefficient_Species_5_param1
A170: Attenuation_Decay_Coefficient_Species_5_param2
A171: Attenuation_Decay_Coefficient_Species_5_param3
A174: =IF((Contaminants_Source_determinand_names Contaminants_Species6)=0,"Undefined",(Contaminants_Source_determinand_names Contaminants_Species6)) -> Molybdenum
A176: Attenuation_Partition_Coefficient_Kd_Species_6 | B176: L/kg | C176: =AL_Kd_Mo -> 110 | D176: =BGF_Kd_Mo -> 110 | E176: =(Attenuation_Fraction_organic_carbon) * (Contaminants_Organic_Carbon_Water_Partition_Coefficient_Koc Contaminants_Species6) -> 0 | F176: =(Attenuation_Fraction_organic_carbon) * (Contaminants_Organic_Carbon_Water_Partition_Coefficient_Koc Contaminants_Species6) -> 0 | G176: =(Attenuation_Fraction_organic_carbon) * (Contaminants_Organic_Carbon_Water_Partition_Coefficient_Koc Contaminants_Species6) -> 0 | H176: =(Attenuation_Fraction_organic_carbon) * (Contaminants_Organic_Carbon_Water_Partition_Coefficient_Koc Contaminants_Species6) -> 0 | I176: =(Attenuation_Fraction_organic_carbon) * (Contaminants_Organic_Carbon_Water_Partition_Coefficient_Koc Contaminants_Species6) -> 0 | J176: =(Attenuation_Fraction_organic_carbon) * (Contaminants_Organic_Carbon_Water_Partition_Coefficient_Koc Contaminants_Species6) -> 0 | K176: =(Attenuation_Fraction_organic_carbon) * (Contaminants_Organic_Carbon_Water_Partition_Coefficient_Koc Contaminants_Species6) -> 0 | L176: =(Attenuation_Fraction_organic_carbon) * (Contaminants_Organic_Carbon_Water_Partition_Coefficient_Koc Contaminants_Species6) -> 0 | M176: =(Attenuation_Fraction_organic_carbon) * (Contaminants_Organic_Carbon_Water_Partition_Coefficient_Koc Contaminants_Species6) -> 0 | N176: =(Attenuation_Fraction_organic_carbon) * (Contaminants_Organic_Carbon_Water_Partition_Coefficient_Koc Contaminants_Species6) -> 0 | O176: =(Attenuation_Fraction_organic_carbon) * (Contaminants_Organic_Carbon_Water_Partition_Coefficient_Koc Contaminants_Species6) -> 0 | P176: =(Attenuation_Fraction_organic_carbon) * (Contaminants_Organic_Carbon_Water_Partition_Coefficient_Koc Contaminants_Species6) -> 0 | Q176: =(Attenuation_Fraction_organic_carbon) * (Contaminants_Organic_Carbon_Water_Partition_Coefficient_Koc Contaminants_Species6) -> 0 | R176: =(Attenuation_Fraction_organic_carbon) * (Contaminants_Organic_Carbon_Water_Partition_Coefficient_Koc Contaminants_Species6) -> 0
A177: Distribution | C177: constant | D177: constant | E177: constant | F177: constant | G177: constant | H177: constant | I177: constant | J177: constant | K177: constant | L177: constant | M177: constant | N177: constant | O177: constant | P177: constant | Q177: constant | R177: constant
A178: Attenuation_Partition_Coefficient_Kd_Species_6_param1
A179: Attenuation_Partition_Coefficient_Kd_Species_6_param2
A180: Attenuation_Partition_Coefficient_Kd_Species_6_param3
A183: Attenuation_Retardation_Species_6 | B183: [-] | C183: =1 + 0.001 * (Attenuation_Partition_Coefficient_Kd_Species_6) * (Attenuation_Dry_bulk_density) / (Hydrogeology_Porosity Hydrogeology!$C:$C) -> 4401 | D183: =1 + 0.001 * (Attenuation_Partition_Coefficient_Kd_Species_6) * (Attenuation_Dry_bulk_density) / (Hydrogeology_Porosity Hydrogeology!$D:$D) -> 881 | E183: =1 + 0.001 * (Attenuation_Partition_Coefficient_Kd_Species_6) * (Attenuation_Dry_bulk_density) / (Hydrogeology_Porosity Hydrogeology!$E:$E) ->  | F183: =1 + 0.001 * (Attenuation_Partition_Coefficient_Kd_Species_6) * (Attenuation_Dry_bulk_density) / (Hydrogeology_Porosity Hydrogeology!$F:$F) ->  | G183: =1 + 0.001 * (Attenuation_Partition_Coefficient_Kd_Species_6) * (Attenuation_Dry_bulk_density) / (Hydrogeology_Porosity Hydrogeology!$G:$G) ->  | H183: =1 + 0.001 * (Attenuation_Partition_Coefficient_Kd_Species_6) * (Attenuation_Dry_bulk_density) / (Hydrogeology_Porosity Hydrogeology!$H:$H) ->  | I183: =1 + 0.001 * (Attenuation_Partition_Coefficient_Kd_Species_6) * (Attenuation_Dry_bulk_density) / (Hydrogeology_Porosity Hydrogeology!$I:$I) ->  | J183: =1 + 0.001 * (Attenuation_Partition_Coefficient_Kd_Species_6) * (Attenuation_Dry_bulk_density) / (Hydrogeology_Porosity Hydrogeology!$J:$J) ->  | K183: =1 + 0.001 * (Attenuation_Partition_Coefficient_Kd_Species_6) * (Attenuation_Dry_bulk_density) / (Hydrogeology_Porosity Hydrogeology!$K:$K) ->  | L183: =1 + 0.001 * (Attenuation_Partition_Coefficient_Kd_Species_6) * (Attenuation_Dry_bulk_density) / (Hydrogeology_Porosity Hydrogeology!$L:$L) ->  | M183: =1 + 0.001 * (Attenuation_Partition_Coefficient_Kd_Species_6) * (Attenuation_Dry_bulk_density) / (Hydrogeology_Porosity Hydrogeology!$M:$M) ->  | N183: =1 + 0.001 * (Attenuation_Partition_Coefficient_Kd_Species_6) * (Attenuation_Dry_bulk_density) / (Hydrogeology_Porosity Hydrogeology!$N:$N) ->  | O183: =1 + 0.001 * (Attenuation_Partition_Coefficient_Kd_Species_6) * (Attenuation_Dry_bulk_density) / (Hydrogeology_Porosity Hydrogeology!$O:$O) ->  | P183: =1 + 0.001 * (Attenuation_Partition_Coefficient_Kd_Species_6) * (Attenuation_Dry_bulk_density) / (Hydrogeology_Porosity Hydrogeology!$P:$P) ->  | Q183: =1 + 0.001 * (Attenuation_Partition_Coefficient_Kd_Species_6) * (Attenuation_Dry_bulk_density) / (Hydrogeology_Porosity Hydrogeology!$Q:$Q) ->  | R183: =1 + 0.001 * (Attenuation_Partition_Coefficient_Kd_Species_6) * (Attenuation_Dry_bulk_density) / (Hydrogeology_Porosity Hydrogeology!$R:$R) -> 
A184: Distribution | C184: constant | D184: constant | E184: constant | F184: constant | G184: constant | H184: constant | I184: constant | J184: constant | K184: constant | L184: constant | M184: constant | N184: constant | O184: constant | P184: constant | Q184: constant | R184: constant
A185: Attenuation_Retardation_Species_6_param1
A186: Attenuation_Retardation_Species_6_param2
A187: Attenuation_Retardation_Species_6_param3
A190: Attenuation_Half_Life_Species_6 | B190: days | C190: No Decay | D190: No Decay | E190: No Decay | F190: No Decay | G190: No Decay | H190: No Decay | I190: No Decay | J190: No Decay | K190: No Decay | L190: No Decay | M190: No Decay | N190: No Decay | O190: No Decay | P190: No Decay | Q190: No Decay | R190: No Decay
A191: Distribution | C191: constant | D191: constant | E191: constant | F191: constant | G191: constant | H191: constant | I191: constant | J191: constant | K191: constant | L191: constant | M191: constant | N191: constant | O191: constant | P191: constant | Q191: constant | R191: constant
A192: Attenuation_Half_Life_Species_6_param1
A193: Attenuation_Half_Life_Species_6_param2
A194: Attenuation_Half_Life_Species_6_param3
A197: Attenuation_Decay_Coefficient_Species_6 | B197: 1/s | C197: =IF((_xlfn.SINGLE(Attenuation_Half_Life_Species_6))<>"No Decay", LN(2) / ((_xlfn.SINGLE(Attenuation_Half_Life_Species_6)) *_xlfn.SINGLE( s_per_day)),0) -> 0 | D197: 0 | E197: 0 | F197: 0 | G197: 0 | H197: 0 | I197: 0 | J197: 0 | K197: 0 | L197: 0 | M197: 0 | N197: 0 | O197: 0 | P197: 0 | Q197: 0 | R197: 0
A198: Distribution | C198: constant | D198: constant | E198: constant | F198: constant | G198: constant | H198: constant | I198: constant | J198: constant | K198: constant | L198: constant | M198: constant | N198: constant | O198: constant | P198: constant | Q198: constant | R198: constant
A199: Attenuation_Decay_Coefficient_Species_6_param1
A200: Attenuation_Decay_Coefficient_Species_6_param2
A201: Attenuation_Decay_Coefficient_Species_6_param3
A204: =IF((Contaminants_Source_determinand_names Contaminants_Species7)=0,"Undefined",(Contaminants_Source_determinand_names Contaminants_Species7)) -> Lead
A206: Attenuation_Partition_Coefficient_Kd_Species_7 | B206: L/kg | C206: =AL_Kd_Pb -> 434.6 | D206: =BGF_Kd_Pb -> 270 | E206: =(Attenuation_Fraction_organic_carbon) * (Contaminants_Organic_Carbon_Water_Partition_Coefficient_Koc Contaminants_Species7) -> 0 | F206: =(Attenuation_Fraction_organic_carbon) * (Contaminants_Organic_Carbon_Water_Partition_Coefficient_Koc Contaminants_Species7) -> 0 | G206: =(Attenuation_Fraction_organic_carbon) * (Contaminants_Organic_Carbon_Water_Partition_Coefficient_Koc Contaminants_Species7) -> 0 | H206: =(Attenuation_Fraction_organic_carbon) * (Contaminants_Organic_Carbon_Water_Partition_Coefficient_Koc Contaminants_Species7) -> 0 | I206: =(Attenuation_Fraction_organic_carbon) * (Contaminants_Organic_Carbon_Water_Partition_Coefficient_Koc Contaminants_Species7) -> 0 | J206: =(Attenuation_Fraction_organic_carbon) * (Contaminants_Organic_Carbon_Water_Partition_Coefficient_Koc Contaminants_Species7) -> 0 | K206: =(Attenuation_Fraction_organic_carbon) * (Contaminants_Organic_Carbon_Water_Partition_Coefficient_Koc Contaminants_Species7) -> 0 | L206: =(Attenuation_Fraction_organic_carbon) * (Contaminants_Organic_Carbon_Water_Partition_Coefficient_Koc Contaminants_Species7) -> 0 | M206: =(Attenuation_Fraction_organic_carbon) * (Contaminants_Organic_Carbon_Water_Partition_Coefficient_Koc Contaminants_Species7) -> 0 | N206: =(Attenuation_Fraction_organic_carbon) * (Contaminants_Organic_Carbon_Water_Partition_Coefficient_Koc Contaminants_Species7) -> 0 | O206: =(Attenuation_Fraction_organic_carbon) * (Contaminants_Organic_Carbon_Water_Partition_Coefficient_Koc Contaminants_Species7) -> 0 | P206: =(Attenuation_Fraction_organic_carbon) * (Contaminants_Organic_Carbon_Water_Partition_Coefficient_Koc Contaminants_Species7) -> 0 | Q206: =(Attenuation_Fraction_organic_carbon) * (Contaminants_Organic_Carbon_Water_Partition_Coefficient_Koc Contaminants_Species7) -> 0 | R206: =(Attenuation_Fraction_organic_carbon) * (Contaminants_Organic_Carbon_Water_Partition_Coefficient_Koc Contaminants_Species7) -> 0
A207: Distribution | C207: constant | D207: constant | E207: constant | F207: constant | G207: constant | H207: constant | I207: constant | J207: constant | K207: constant | L207: constant | M207: constant | N207: constant | O207: constant | P207: constant | Q207: constant | R207: constant
A208: Attenuation_Partition_Coefficient_Kd_Species_7_param1
A209: Attenuation_Partition_Coefficient_Kd_Species_7_param2
A210: Attenuation_Partition_Coefficient_Kd_Species_7_param3
A213: Attenuation_Retardation_Species_7 | B213: [-] | C213: =1 + 0.001 * (Attenuation_Partition_Coefficient_Kd_Species_7) * (Attenuation_Dry_bulk_density) / (Hydrogeology_Porosity Hydrogeology!$C:$C) -> 17385 | D213: =1 + 0.001 * (Attenuation_Partition_Coefficient_Kd_Species_7) * (Attenuation_Dry_bulk_density) / (Hydrogeology_Porosity Hydrogeology!$D:$D) -> 2161 | E213: =1 + 0.001 * (Attenuation_Partition_Coefficient_Kd_Species_7) * (Attenuation_Dry_bulk_density) / (Hydrogeology_Porosity Hydrogeology!$E:$E) ->  | F213: =1 + 0.001 * (Attenuation_Partition_Coefficient_Kd_Species_7) * (Attenuation_Dry_bulk_density) / (Hydrogeology_Porosity Hydrogeology!$F:$F) ->  | G213: =1 + 0.001 * (Attenuation_Partition_Coefficient_Kd_Species_7) * (Attenuation_Dry_bulk_density) / (Hydrogeology_Porosity Hydrogeology!$G:$G) ->  | H213: =1 + 0.001 * (Attenuation_Partition_Coefficient_Kd_Species_7) * (Attenuation_Dry_bulk_density) / (Hydrogeology_Porosity Hydrogeology!$H:$H) ->  | I213: =1 + 0.001 * (Attenuation_Partition_Coefficient_Kd_Species_7) * (Attenuation_Dry_bulk_density) / (Hydrogeology_Porosity Hydrogeology!$I:$I) ->  | J213: =1 + 0.001 * (Attenuation_Partition_Coefficient_Kd_Species_7) * (Attenuation_Dry_bulk_density) / (Hydrogeology_Porosity Hydrogeology!$J:$J) ->  | K213: =1 + 0.001 * (Attenuation_Partition_Coefficient_Kd_Species_7) * (Attenuation_Dry_bulk_density) / (Hydrogeology_Porosity Hydrogeology!$K:$K) ->  | L213: =1 + 0.001 * (Attenuation_Partition_Coefficient_Kd_Species_7) * (Attenuation_Dry_bulk_density) / (Hydrogeology_Porosity Hydrogeology!$L:$L) ->  | M213: =1 + 0.001 * (Attenuation_Partition_Coefficient_Kd_Species_7) * (Attenuation_Dry_bulk_density) / (Hydrogeology_Porosity Hydrogeology!$M:$M) ->  | N213: =1 + 0.001 * (Attenuation_Partition_Coefficient_Kd_Species_7) * (Attenuation_Dry_bulk_density) / (Hydrogeology_Porosity Hydrogeology!$N:$N) ->  | O213: =1 + 0.001 * (Attenuation_Partition_Coefficient_Kd_Species_7) * (Attenuation_Dry_bulk_density) / (Hydrogeology_Porosity Hydrogeology!$O:$O) ->  | P213: =1 + 0.001 * (Attenuation_Partition_Coefficient_Kd_Species_7) * (Attenuation_Dry_bulk_density) / (Hydrogeology_Porosity Hydrogeology!$P:$P) ->  | Q213: =1 + 0.001 * (Attenuation_Partition_Coefficient_Kd_Species_7) * (Attenuation_Dry_bulk_density) / (Hydrogeology_Porosity Hydrogeology!$Q:$Q) ->  | R213: =1 + 0.001 * (Attenuation_Partition_Coefficient_Kd_Species_7) * (Attenuation_Dry_bulk_density) / (Hydrogeology_Porosity Hydrogeology!$R:$R) -> 
A214: Distribution | C214: constant | D214: constant | E214: constant | F214: constant | G214: constant | H214: constant | I214: constant | J214: constant | K214: constant | L214: constant | M214: constant | N214: constant | O214: constant | P214: constant | Q214: constant | R214: constant
A215: Attenuation_Retardation_Species_7_param1
A216: Attenuation_Retardation_Species_7_param2
A217: Attenuation_Retardation_Species_7_param3
A220: Attenuation_Half_Life_Species_7 | B220: days | C220: No Decay | D220: No Decay | E220: No Decay | F220: No Decay | G220: No Decay | H220: No Decay | I220: No Decay | J220: No Decay | K220: No Decay | L220: No Decay | M220: No Decay | N220: No Decay | O220: No Decay | P220: No Decay | Q220: No Decay | R220: No Decay
A221: Distribution | C221: constant | D221: constant | E221: constant | F221: constant | G221: constant | H221: constant | I221: constant | J221: constant | K221: constant | L221: constant | M221: constant | N221: constant | O221: constant | P221: constant | Q221: constant | R221: constant
A222: Attenuation_Half_Life_Species_7_param1
A223: Attenuation_Half_Life_Species_7_param2
A224: Attenuation_Half_Life_Species_7_param3
A227: Attenuation_Decay_Coefficient_Species_7 | B227: 1/s | C227: =IF((_xlfn.SINGLE(Attenuation_Half_Life_Species_7))<>"No Decay", LN(2) / ((_xlfn.SINGLE(Attenuation_Half_Life_Species_7)) *_xlfn.SINGLE( s_per_day)),0) -> 0 | D227: 0 | E227: 0 | F227: 0 | G227: 0 | H227: 0 | I227: 0 | J227: 0 | K227: 0 | L227: 0 | M227: 0 | N227: 0 | O227: 0 | P227: 0 | Q227: 0 | R227: 0
A228: Distribution | C228: constant | D228: constant | E228: constant | F228: constant | G228: constant | H228: constant | I228: constant | J228: constant | K228: constant | L228: constant | M228: constant | N228: constant | O228: constant | P228: constant | Q228: constant | R228: constant
A229: Attenuation_Decay_Coefficient_Species_7_param1
A230: Attenuation_Decay_Coefficient_Species_7_param2
A231: Attenuation_Decay_Coefficient_Species_7_param3
A234: =IF((Contaminants_Source_determinand_names Contaminants_Species8)=0,"Undefined",(Contaminants_Source_determinand_names Contaminants_Species8)) -> Antimony
A236: Attenuation_Partition_Coefficient_Kd_Species_8 | B236: L/kg | C236: =AL_Kd_Sb -> 140 | D236: =BGF_Kd_Sb -> 17 | E236: =(Attenuation_Fraction_organic_carbon) * (Contaminants_Organic_Carbon_Water_Partition_Coefficient_Koc Contaminants_Species8) -> 0 | F236: =(Attenuation_Fraction_organic_carbon) * (Contaminants_Organic_Carbon_Water_Partition_Coefficient_Koc Contaminants_Species8) -> 0 | G236: =(Attenuation_Fraction_organic_carbon) * (Contaminants_Organic_Carbon_Water_Partition_Coefficient_Koc Contaminants_Species8) -> 0 | H236: =(Attenuation_Fraction_organic_carbon) * (Contaminants_Organic_Carbon_Water_Partition_Coefficient_Koc Contaminants_Species8) -> 0 | I236: =(Attenuation_Fraction_organic_carbon) * (Contaminants_Organic_Carbon_Water_Partition_Coefficient_Koc Contaminants_Species8) -> 0 | J236: =(Attenuation_Fraction_organic_carbon) * (Contaminants_Organic_Carbon_Water_Partition_Coefficient_Koc Contaminants_Species8) -> 0 | K236: =(Attenuation_Fraction_organic_carbon) * (Contaminants_Organic_Carbon_Water_Partition_Coefficient_Koc Contaminants_Species8) -> 0 | L236: =(Attenuation_Fraction_organic_carbon) * (Contaminants_Organic_Carbon_Water_Partition_Coefficient_Koc Contaminants_Species8) -> 0 | M236: =(Attenuation_Fraction_organic_carbon) * (Contaminants_Organic_Carbon_Water_Partition_Coefficient_Koc Contaminants_Species8) -> 0 | N236: =(Attenuation_Fraction_organic_carbon) * (Contaminants_Organic_Carbon_Water_Partition_Coefficient_Koc Contaminants_Species8) -> 0 | O236: =(Attenuation_Fraction_organic_carbon) * (Contaminants_Organic_Carbon_Water_Partition_Coefficient_Koc Contaminants_Species8) -> 0 | P236: =(Attenuation_Fraction_organic_carbon) * (Contaminants_Organic_Carbon_Water_Partition_Coefficient_Koc Contaminants_Species8) -> 0 | Q236: =(Attenuation_Fraction_organic_carbon) * (Contaminants_Organic_Carbon_Water_Partition_Coefficient_Koc Contaminants_Species8) -> 0 | R236: =(Attenuation_Fraction_organic_carbon) * (Contaminants_Organic_Carbon_Water_Partition_Coefficient_Koc Contaminants_Species8) -> 0
A237: Distribution | C237: constant | D237: constant | E237: constant | F237: constant | G237: constant | H237: constant | I237: constant | J237: constant | K237: constant | L237: constant | M237: constant | N237: constant | O237: constant | P237: constant | Q237: constant | R237: constant
A238: Attenuation_Partition_Coefficient_Kd_Species_8_param1
A239: Attenuation_Partition_Coefficient_Kd_Species_8_param2
A240: Attenuation_Partition_Coefficient_Kd_Species_8_param3
A243: Attenuation_Retardation_Species_8 | B243: [-] | C243: =1 + 0.001 * (Attenuation_Partition_Coefficient_Kd_Species_8) * (Attenuation_Dry_bulk_density) / (Hydrogeology_Porosity Hydrogeology!$C:$C) -> 5601 | D243: =1 + 0.001 * (Attenuation_Partition_Coefficient_Kd_Species_8) * (Attenuation_Dry_bulk_density) / (Hydrogeology_Porosity Hydrogeology!$D:$D) -> 137 | E243: =1 + 0.001 * (Attenuation_Partition_Coefficient_Kd_Species_8) * (Attenuation_Dry_bulk_density) / (Hydrogeology_Porosity Hydrogeology!$E:$E) ->  | F243: =1 + 0.001 * (Attenuation_Partition_Coefficient_Kd_Species_8) * (Attenuation_Dry_bulk_density) / (Hydrogeology_Porosity Hydrogeology!$F:$F) ->  | G243: =1 + 0.001 * (Attenuation_Partition_Coefficient_Kd_Species_8) * (Attenuation_Dry_bulk_density) / (Hydrogeology_Porosity Hydrogeology!$G:$G) ->  | H243: =1 + 0.001 * (Attenuation_Partition_Coefficient_Kd_Species_8) * (Attenuation_Dry_bulk_density) / (Hydrogeology_Porosity Hydrogeology!$H:$H) ->  | I243: =1 + 0.001 * (Attenuation_Partition_Coefficient_Kd_Species_8) * (Attenuation_Dry_bulk_density) / (Hydrogeology_Porosity Hydrogeology!$I:$I) ->  | J243: =1 + 0.001 * (Attenuation_Partition_Coefficient_Kd_Species_8) * (Attenuation_Dry_bulk_density) / (Hydrogeology_Porosity Hydrogeology!$J:$J) ->  | K243: =1 + 0.001 * (Attenuation_Partition_Coefficient_Kd_Species_8) * (Attenuation_Dry_bulk_density) / (Hydrogeology_Porosity Hydrogeology!$K:$K) ->  | L243: =1 + 0.001 * (Attenuation_Partition_Coefficient_Kd_Species_8) * (Attenuation_Dry_bulk_density) / (Hydrogeology_Porosity Hydrogeology!$L:$L) ->  | M243: =1 + 0.001 * (Attenuation_Partition_Coefficient_Kd_Species_8) * (Attenuation_Dry_bulk_density) / (Hydrogeology_Porosity Hydrogeology!$M:$M) ->  | N243: =1 + 0.001 * (Attenuation_Partition_Coefficient_Kd_Species_8) * (Attenuation_Dry_bulk_density) / (Hydrogeology_Porosity Hydrogeology!$N:$N) ->  | O243: =1 + 0.001 * (Attenuation_Partition_Coefficient_Kd_Species_8) * (Attenuation_Dry_bulk_density) / (Hydrogeology_Porosity Hydrogeology!$O:$O) ->  | P243: =1 + 0.001 * (Attenuation_Partition_Coefficient_Kd_Species_8) * (Attenuation_Dry_bulk_density) / (Hydrogeology_Porosity Hydrogeology!$P:$P) ->  | Q243: =1 + 0.001 * (Attenuation_Partition_Coefficient_Kd_Species_8) * (Attenuation_Dry_bulk_density) / (Hydrogeology_Porosity Hydrogeology!$Q:$Q) ->  | R243: =1 + 0.001 * (Attenuation_Partition_Coefficient_Kd_Species_8) * (Attenuation_Dry_bulk_density) / (Hydrogeology_Porosity Hydrogeology!$R:$R) -> 
A244: Distribution | C244: constant | D244: constant | E244: constant | F244: constant | G244: constant | H244: constant | I244: constant | J244: constant | K244: constant | L244: constant | M244: constant | N244: constant | O244: constant | P244: constant | Q244: constant | R244: constant
A245: Attenuation_Retardation_Species_8_param1
A246: Attenuation_Retardation_Species_8_param2
A247: Attenuation_Retardation_Species_8_param3
A250: Attenuation_Half_Life_Species_8 | B250: days | C250: No Decay | D250: No Decay | E250: No Decay | F250: No Decay | G250: No Decay | H250: No Decay | I250: No Decay | J250: No Decay | K250: No Decay | L250: No Decay | M250: No Decay | N250: No Decay | O250: No Decay | P250: No Decay | Q250: No Decay | R250: No Decay
A251: Distribution | C251: constant | D251: constant | E251: constant | F251: constant | G251: constant | H251: constant | I251: constant | J251: constant | K251: constant | L251: constant | M251: constant | N251: constant | O251: constant | P251: constant | Q251: constant | R251: constant
A252: Attenuation_Half_Life_Species_8_param1
A253: Attenuation_Half_Life_Species_8_param2
A254: Attenuation_Half_Life_Species_8_param3
A257: Attenuation_Decay_Coefficient_Species_8 | B257: 1/s | C257: =IF((_xlfn.SINGLE(Attenuation_Half_Life_Species_8))<>"No Decay", LN(2) / ((_xlfn.SINGLE(Attenuation_Half_Life_Species_8)) *_xlfn.SINGLE( s_per_day)),0) -> 0 | D257: 0 | E257: 0 | F257: 0 | G257: 0 | H257: 0 | I257: 0 | J257: 0 | K257: 0 | L257: 0 | M257: 0 | N257: 0 | O257: 0 | P257: 0 | Q257: 0 | R257: 0
A258: Distribution | C258: constant | D258: constant | E258: constant | F258: constant | G258: constant | H258: constant | I258: constant | J258: constant | K258: constant | L258: constant | M258: constant | N258: constant | O258: constant | P258: constant | Q258: constant | R258: constant
A259: Attenuation_Decay_Coefficient_Species_8_param1
A260: Attenuation_Decay_Coefficient_Species_8_param2
A261: Attenuation_Decay_Coefficient_Species_8_param3

Sheet WaterBalance
A1: WATER BALANCE
A3: User defined
A5: Enter your own calculations for the water balance
A6: Carry fluxes and velocities over onto the Pathway sheet

Sheet Pathways
A1: PATHWAY SUMMARY
A3: Path 1 | C3: Section 1 | E3: Section 2 | G3: Section 3
A4: Path 1 Type | C4: Source | E4: Unit | G4: Unit
A5: Path 1 Name | C5: Inert Restoration Material | E5: Attenuation Layer: Node 1 | G5: Beenham Grange Formation: Node 1
A6: Path 1 Process | C6: Declining source | E6: ADRD (1D) + Dilution | G6: Aquifer Dilution Only
A7: Path 1 Standards | F7: Target Standard | G7: EAL (GW)
A8: Path 1 Parameter1 | B8: Q_managed [m3/s] | C8: 0 | D8: Velocity [m/s] | E8: =(Attenuation_Lay Hydrogeology_Velocity) -> 4.811764706e-08
A9: Path 1 Parameter2 | B9: Managed time [years] | C9: 0 | D9: Dispersivity [m] | E9: =E10/10 -> 0.1
A10: Path 1 Parameter3 | B10: Q_path [m3/s] | C10: =Qside_c -> 2.8205049e-05 | D10: Travel Distance [m] | E10: =AL_traveldis -> 1
A11: Path 1 Parameter4 | B11: Q_decline [m3/s] | C11: =Qside_c -> 2.8205049e-05 | D11: Mixing Depth [m] | F11: Mixing Depth [m]
A12: Path 1 Parameter5 | D12: Mixing Width [m] | F12: Mixing Width [m]
A13: Path 1 Parameter6 | D13: Q_Dilute [m3/s] | E13: =Q_RO -> 0.001181015366 | F13: Q_Dilute [m3/s] | G13: =Path1_Param5*Path1_Param4*(Beenham_Grange_ Hydrogeology_Hydraulic_Conductivity)*(Beenham_Grange_ Hydrogeology_Hydraulic_Gradient) -> 0
A16: Path 2 | C16: Section 1 | E16: Section 2 | G16: Section 3 | I16: Section 4
A17: Path 2 Type | C17: Source | E17: Unit | G17: Unit | I17: Receptor
A18: Path 2 Name | C18: Inert Restoration Material | E18: Attenuation Layer: Node 2 | G18: Beenham Grange Formation: Node 2 | I18: Groundwater
A19: Path 2 Process | C19: Declining source | E19: ADRD (1D) + Dilution | G19: ADRD (1D) + Dilution | I19: Monitoring Borehole
A20: Path 2 Standards | H20: Target Standard | I20: EAL (GW)
A21: Path 2 Parameter1 | B21: Q_managed [m3/s] | C21: 0 | D21: Velocity [m/s] | E21: =(Attenuation_Lay Hydrogeology_Velocity) -> 4.811764706e-08 | F21: Velocity [m/s] | G21: =(Beenham_Grange_ Hydrogeology_Velocity) -> 2.118e-05
A22: Path 2 Parameter2 | B22: Managed time [years] | C22: 0 | D22: Dispersivity [m] | E22: =E23/10 -> 0.1 | F22: Dispersivity [m] | G22: =G23/10 -> 0.1
A23: Path 2 Parameter3 | B23: Q_path [m3/s] | C23: =Qside_c -> 2.8205049e-05 | D23: Travel Distance [m] | E23: =AL_traveldis -> 1 | F23: Travel Distance [m] | G23: =dis_gw_c -> 1
A24: Path 2 Parameter4 | B24: Q_decline [m3/s] | C24: =Qside_c -> 2.8205049e-05 | D24: Mixing Depth [m] | F24: Mixing Depth [m]
A25: Path 2 Parameter5 | D25: Mixing Width [m] | F25: Mixing Width [m]
A26: Path 2 Parameter6 | D26: Q_Dilute [m3/s] | E26: =Q_RO -> 0.001181015366 | F26: Q_Dilute [m3/s] | G26: =Path2_Param5*Path2_Param4*(Beenham_Grange_ Hydrogeology_Hydraulic_Conductivity)*(Beenham_Grange_ Hydrogeology_Hydraulic_Gradient) -> 0 | H26: Q_dilute [m3/s] | I26: 0

Sheet Simulation
A1: SIMULATION PARAMETERS
B3: Monte Carlo Analysis with Crystal Ball | J3: Named Constants
C5: Reported Percentile | F5: 95 | K5: s_per_year | L5: =365.25*60*60*24 -> 31557600
C6: Number of simulations | F6: 10000 | K6: s_per_day | L6: =60*60*24 -> 86400
J9: Laplace Transform Solution Parameters
C11: Minimise while running: | K11: sigma | L11: 0
K12: nu | L12: 1
K13: nsum | L13: 16
K14: omega | L14: 11
B17: Reporting Options
C22: Number of timeslices for breakthrough curves | G22: 100
B24: The timeslices specified on the results sheets are saved below.
C25: Path1 timeslices in years | E25: Path2 timeslices in years
C26: TS_Path1 | E26: TS_Path2
C27: 10 | E27: 10
C28: 20 | E28: 20
C29: 30 | E29: 30
C30: 40 | E30: 40
C31: 50 | E31: 50
C32: 60 | E32: 60
C33: 70 | E33: 70
C34: 80 | E34: 80
C35: 90 | E35: 90
C36: 100 | E36: 100
C37: 110 | E37: 110
C38: 120 | E38: 120
C39: 130 | E39: 130
C40: 140 | E40: 140
C41: 150 | E41: 150
C42: 160 | E42: 160
C43: 170 | E43: 170
C44: 180 | E44: 180
C45: 190 | E45: 190
C46: 200 | E46: 200
C47: 210 | E47: 210
C48: 220 | E48: 220
C49: 230 | E49: 230
C50: 240 | E50: 240
C51: 250 | E51: 250
C52: 260 | E52: 260
C53: 270 | E53: 270
C54: 280 | E54: 280
C55: 290 | E55: 290
C56: 300 | E56: 300
C57: 310 | E57: 310
C58: 320 | E58: 320
C59: 330 | E59: 330
C60: 340 | E60: 340
C61: 350 | E61: 350
C62: 360 | E62: 360
C63: 370 | E63: 370
C64: 380 | E64: 380
C65: 390 | E65: 390
C66: 400 | E66: 400
C67: 410 | E67: 410
C68: 420 | E68: 420
C69: 430 | E69: 430
C70: 440 | E70: 440
C71: 450 | E71: 450
C72: 460 | E72: 460
C73: 470 | E73: 470
C74: 480 | E74: 480
C75: 490 | E75: 490
C76: 500 | E76: 500
C77: 510 | E77: 510
C78: 520 | E78: 520
C79: 530 | E79: 530
C80: 540 | E80: 540
C81: 550 | E81: 550
C82: 560 | E82: 560
C83: 570 | E83: 570
C84: 580 | E84: 580
C85: 590 | E85: 590
C86: 600 | E86: 600
C87: 610 | E87: 610
C88: 620 | E88: 620
C89: 630 | E89: 630
C90: 640 | E90: 640
C91: 650 | E91: 650
C92: 660 | E92: 660
C93: 670 | E93: 670
C94: 680 | E94: 680
C95: 690 | E95: 690
C96: 700 | E96: 700
C97: 710 | E97: 710
C98: 720 | E98: 720
C99: 730 | E99: 730
C100: 740 | E100: 740
C101: 750 | E101: 750
C102: 760 | E102: 760
C103: 770 | E103: 770
C104: 780 | E104: 780
C105: 790 | E105: 790
C106: 800 | E106: 800
C107: 810 | E107: 810
C108: 820 | E108: 820
C109: 830 | E109: 830
C110: 840 | E110: 840
C111: 850 | E111: 850
C112: 860 | E112: 860
C113: 870 | E113: 870
C114: 880 | E114: 880
C115: 890 | E115: 890
C116: 900 | E116: 900
C117: 910 | E117: 910
C118: 920 | E118: 920
C119: 930 | E119: 930
C120: 940 | E120: 940
C121: 950 | E121: 950
C122: 960 | E122: 960
C123: 970 | E123: 970
C124: 980 | E124: 980
C125: 990 | E125: 990
C126: 1000 | E126: 1000

Sheet Audit
A1: AUDIT TRAIL SHEET
A3: Author | B3: Date | C3: Time | E3: Cell Address | G3: New Value | H3: Old Value | I3: Cell Name
A6: Saved 27/02/2023: 14:52:22 Level Number: 5
A8: BREAKTHROUGH RESULTS
A10: Advanced
A11: Pollutant Linkage: Inert Restorati, Attenuation Layer, Beenham Grange Formation | F11: Pollutant Linkage: Inert Restorati, Attenuation Layer, Beenham Grange Formation, Groundwater | K11: Pollutant Linkage: Inert Restorati, Attenuation Layer, Beenham Grange Formation, River Enborne
A12: Concentrations in mg/L in Beenham Grange Formation | F12: Concentrations in mg/L in Groundwater | K12: Concentrations in mg/L in River Enborne
A14: Compared with EAL (GW) target concentration in mg/L | F14: Compared with EAL (GW) target concentration in mg/L | K14: Compared with EAL (River Enborne) target concentration in mg/L
B15: 0.266 | C15: 0.0002 | D15: 0.0006 | G15: 0.266 | H15: 0.0002 | I15: 0.0006 | L15: 0.266 | M15: 0.0012 | N15: 0.001
A17: Time(years) | B17: Species1 | C17: Species2 | D17: Species3 | F17: Time(years) | G17: Species1 | H17: Species2 | I17: Species3 | K17: Time(years) | L17: Species1 | M17: Species2 | N17: Species3
B18: Ammoniacial Nitrogen | C18: Lead | D18: Antimony | G18: Ammoniacial Nitrogen | H18: Lead | I18: Antimony | L18: Ammoniacial Nitrogen | M18: Lead | N18: Antimony
A19: 10 | B19: 0 | C19: 0 | D19: 0.0004676918839 | F19: 10 | G19: 0 | H19: 0 | I19: 0.0004641984859 | K19: 10 | L19: 0 | M19: 0 | N19: 3.379354088e-07
A20: 20 | B20: 0 | C20: 0 | D20: 0.0006815017589 | F20: 20 | G20: 0 | H20: 0 | I20: 0.000676493008 | K20: 20 | L20: 0 | M20: 0 | N20: 4.942243482e-07
A21: 30 | B21: 0 | C21: 0 | D21: 0.0007220894884 | F21: 30 | G21: 0 | H21: 0 | I21: 0.0007167931941 | K21: 30 | L21: 0 | M21: 0 | N21: 5.238954804e-07
A22: 40 | B22: 0 | C22: 0 | D22: 0.0007291750339 | F22: 40 | G22: 0 | H22: 0 | I22: 0.0007238288353 | K22: 40 | L22: 0 | M22: 0 | N22: 5.290817193e-07
A23: 50 | B23: 0 | C23: 0 | D23: 0.0007291827139 | F23: 50 | G23: 0 | H23: 0 | I23: 0.0007238369143 | K23: 50 | L23: 0 | M23: 0 | N23: 5.290973162e-07
A24: 60 | B24: 0 | C24: 0 | D24: 0.0007275725712 | F24: 60 | G24: 0 | H24: 0 | I24: 0.0007222386841 | K24: 60 | L24: 0 | M24: 0 | N24: 5.279313714e-07
A25: 70 | B25: 0 | C25: 0 | D25: 0.0007255744691 | F25: 70 | G25: 0 | H25: 0 | I25: 0.0007202552571 | K25: 70 | L25: 0 | M25: 0 | N25: 5.264821286e-07
A26: 80 | B26: 0 | C26: 0 | D26: 0.0007234829083 | F26: 80 | G26: 0 | H26: 0 | I26: 0.0007181790366 | K26: 80 | L26: 0 | M26: 0 | N26: 5.249646298e-07
A27: 90 | B27: 0 | C27: 0 | D27: 0.0007213715757 | F27: 90 | G27: 0 | H27: 0 | I27: 0.0007160831841 | K27: 90 | L27: 0 | M27: 0 | N27: 5.234326715e-07
A28: 100 | B28: 0 | C28: 0 | D28: 0.000719259514 | F28: 100 | G28: 0 | H28: 0 | I28: 0.0007139866065 | K28: 100 | L28: 0 | M28: 0 | N28: 5.219001546e-07
A29: 110 | B29: 0 | C29: 0 | D29: 0.0007171517609 | F29: 110 | G29: 0 | H29: 0 | I29: 0.0007118943055 | K29: 110 | L29: 0 | M29: 0 | N29: 5.203707559e-07
A30: 120 | B30: 0 | C30: 0 | D30: 0.0007150496661 | F30: 120 | G30: 0 | H30: 0 | I30: 0.0007098076213 | K30: 120 | L30: 0 | M30: 0 | N30: 5.188454608e-07
A31: 130 | B31: 0 | C31: 0 | D31: 0.0007129535879 | F31: 130 | G31: 0 | H31: 0 | I31: 0.0007077269095 | K31: 130 | L31: 0 | M31: 0 | N31: 5.173245308e-07
A32: 140 | B32: 0 | C32: 0 | D32: 0.000710863613 | F32: 140 | G32: 0 | H32: 0 | I32: 0.0007056522562 | K32: 140 | L32: 0 | M32: 0 | N32: 5.158080293e-07
A33: 150 | B33: 0 | C33: 0 | D33: 0.0007087797531 | F33: 150 | G33: 0 | H33: 0 | I33: 0.0007035836731 | K33: 150 | L33: 0 | M33: 0 | N33: 5.142959647e-07
A34: 160 | B34: 0 | C34: 0 | D34: 0.0007067019984 | F34: 160 | G34: 0 | H34: 0 | I34: 0.0007015211505 | K34: 160 | L34: 0 | M34: 0 | N34: 5.127883302e-07
A35: 170 | B35: 0 | C35: 0 | D35: 0.0007046303337 | F35: 170 | G35: 0 | H35: 0 | I35: 0.0006994646732 | K35: 170 | L35: 0 | M35: 0 | N35: 5.112851145e-07
A36: 180 | B36: 0 | C36: 0 | D36: 0.0007025647416 | F36: 180 | G36: 0 | H36: 0 | I36: 0.000697414224 | K36: 180 | L36: 0 | M36: 0 | N36: 5.097863053e-07
A37: 190 | B37: 0 | C37: 0 | D37: 0.0007005052047 | F37: 190 | G37: 0 | H37: 0 | I37: 0.0006953697856 | K37: 190 | L37: 0 | M37: 0 | N37: 5.082918896e-07
A38: 200 | B38: 0 | C38: 0 | D38: 0.0006984517051 | F38: 200 | G38: 0 | H38: 0 | I38: 0.0006933313403 | K38: 200 | L38: 0 | M38: 0 | N38: 5.068018548e-07
A39: 210 | B39: 0 | C39: 0 | D39: 0.0006964042253 | F39: 210 | G39: 0 | H39: 0 | I39: 0.0006912988706 | K39: 210 | L39: 0 | M39: 0 | N39: 5.053161879e-07
A40: 220 | B40: 0 | C40: 0 | D40: 0.0006943627476 | F40: 220 | G40: 0 | H40: 0 | I40: 0.000689272359 | K40: 220 | L40: 0 | M40: 0 | N40: 5.038348762e-07
A41: 230 | B41: 0 | C41: 0 | D41: 0.0006923272544 | F41: 230 | G41: 0 | H41: 0 | I41: 0.0006872517881 | K41: 230 | L41: 0 | M41: 0 | N41: 5.023579069e-07
A42: 240 | B42: 0 | C42: 0 | D42: 0.0006902977282 | F42: 240 | G42: 0 | H42: 0 | I42: 0.0006852371403 | K42: 240 | L42: 0 | M42: 0 | N42: 5.008852672e-07
A43: 250 | B43: 0 | C43: 0 | D43: 0.0006882741514 | F43: 250 | G43: 0 | H43: 0 | I43: 0.0006832283984 | K43: 250 | L43: 0 | M43: 0 | N43: 4.994169446e-07
A44: 260 | B44: 0 | C44: 0 | D44: 0.0006862565066 | F44: 260 | G44: 0 | H44: 0 | I44: 0.0006812255451 | K44: 260 | L44: 0 | M44: 0 | N44: 4.979529262e-07
A45: 270 | B45: 0 | C45: 0 | D45: 0.0006842447765 | F45: 270 | G45: 0 | H45: 0 | I45: 0.000679228563 | K45: 270 | L45: 0 | M45: 0 | N45: 4.964931996e-07
A46: 280 | B46: 0 | C46: 0 | D46: 0.0006822389437 | F46: 280 | G46: 0 | H46: 0 | I46: 0.0006772374349 | K46: 280 | L46: 0 | M46: 0 | N46: 4.950377521e-07
A47: 290 | B47: 0 | C47: 0 | D47: 0.0006802389908 | F47: 290 | G47: 0 | H47: 0 | I47: 0.0006752521438 | K47: 290 | L47: 0 | M47: 0 | N47: 4.935865711e-07
A48: 300 | B48: 0 | C48: 0 | D48: 0.0006782449008 | F48: 300 | G48: 0 | H48: 1.017148112e-40 | I48: 0.0006732726725 | K48: 300 | L48: 0 | M48: 0 | N48: 4.921396443e-07
A49: 310 | B49: 0 | C49: 0 | D49: 0.0006762566563 | F49: 310 | G49: 0 | H49: 0 | I49: 0.0006712990039 | K49: 310 | L49: 0 | M49: 0 | N49: 4.90696959e-07
A50: 320 | B50: 0 | C50: 3.905318822e-40 | D50: 0.0006742742403 | F50: 320 | G50: 0 | H50: 3.193505125e-40 | I50: 0.000669331121 | K50: 320 | L50: 0 | M50: 0 | N50: 4.892585029e-07
A51: 330 | B51: 0 | C51: 2.300257547e-38 | D51: 0.0006722976357 | F51: 330 | G51: 0 | H51: 2.261923303e-38 | I51: 0.0006673690069 | K51: 330 | L51: 0 | M51: 0 | N51: 4.878242636e-07
A52: 340 | B52: 0 | C52: 1.087154928e-37 | D52: 0.0006703268254 | F52: 340 | G52: 0 | H52: 1.071738912e-37 | I52: 0.0006654126447 | K52: 340 | L52: 0 | M52: 0 | N52: 4.863942287e-07
A53: 350 | B53: 0 | C53: 4.425591026e-37 | D53: 0.0006683617924 | F53: 350 | G53: 0 | H53: 4.34699978e-37 | I53: 0.0006634620174 | K53: 350 | L53: 0 | M53: 2.399502008e-40 | N53: 4.849683859e-07
A54: 360 | B54: 0 | C54: 2.148769072e-36 | D54: 0.0006664025198 | F54: 360 | G54: 0 | H54: 2.109752635e-36 | I54: 0.0006615171083 | K54: 360 | L54: 0 | M54: 1.118529098e-39 | N54: 4.835467228e-07
A55: 370 | B55: 0 | C55: 9.878968935e-36 | D55: 0.0006644489908 | F55: 370 | G55: 0 | H55: 9.719897237e-36 | I55: 0.0006595779006 | K55: 370 | L55: 0 | M55: 5.460757969e-39 | N55: 4.821292274e-07
A56: 380 | B56: 0 | C56: 3.792004943e-35 | D56: 0.0006625011884 | F56: 380 | G56: 0 | H56: 3.737723428e-35 | I56: 0.0006576443776 | K56: 380 | L56: 0 | M56: 2.220330805e-38 | N56: 4.807158872e-07
A57: 390 | B57: 0 | C57: 1.233788448e-34 | D57: 0.000660559096 | F57: 390 | G57: 0 | H57: 1.217618104e-34 | I57: 0.0006557165227 | K57: 390 | L57: 0 | M57: 7.50265668e-38 | N57: 4.793066902e-07
A58: 400 | B58: 0 | C58: 3.522325113e-34 | D58: 0.0006586226967 | F58: 400 | G58: 0 | H58: 3.47963515e-34 | I58: 0.0006537943192 | K58: 400 | L58: 0 | M58: 2.204094201e-37 | N58: 4.779016242e-07
A59: 410 | B59: 0 | C59: 8.937229894e-34 | D59: 0.0006566919738 | F59: 410 | G59: 0 | H59: 8.838890107e-34 | I59: 0.0006518777505 | K59: 410 | L59: 0 | M59: 5.769935147e-37 | N59: 4.76500677e-07
A60: 420 | B60: 0 | C60: 1.985635663e-33 | D60: 0.0006547669108 | F60: 420 | G60: 0 | H60: 1.96674127e-33 | I60: 0.0006499668002 | K60: 420 | L60: 0 | M60: 1.336573983e-36 | N60: 4.751038367e-07
A61: 430 | B61: 0 | C61: 3.690578274e-33 | D61: 0.0006528474911 | F61: 430 | G61: 0 | H61: 3.663643089e-33 | I61: 0.0006480614517 | K61: 430 | L61: 0 | M61: 2.641402023e-36 | N61: 4.737110912e-07
A62: 440 | B62: 0 | C62: 5.07247297e-33 | D62: 0.000650933698 | F62: 440 | G62: 0 | H62: 5.058290979e-33 | I62: 0.0006461616887 | K62: 440 | L62: 0 | M62: 4.07854363e-36 | N62: 4.723224284e-07
A63: 450 | B63: 0 | C63: 2.334416219e-33 | D63: 0.0006490255151 | F63: 450 | G63: 0 | H63: 2.40660119e-33 | I63: 0.0006442674948 | K63: 450 | L63: 0 | M63: 3.430367478e-36 | N63: 4.709378364e-07
A64: 460 | B64: 0 | C64: 0 | D64: 0.000647122926 | F64: 460 | G64: 0 | H64: 0 | I64: 0.0006423788536 | K64: 460 | L64: 0 | M64: 0 | N64: 4.695573033e-07
A65: 470 | B65: 0 | C65: 0 | D65: 0.0006452259142 | F65: 470 | G65: 0 | H65: 0 | I65: 0.0006404957488 | K65: 470 | L65: 0 | M65: 0 | N65: 4.681808172e-07
A66: 480 | B66: 0 | C66: 0 | D66: 0.0006433344635 | F66: 480 | G66: 0 | H66: 0 | I66: 0.0006386181644 | K66: 480 | L66: 0 | M66: 0 | N66: 4.668083662e-07
A67: 490 | B67: 0 | C67: 0 | D67: 0.0006414485574 | F67: 490 | G67: 0 | H67: 0 | I67: 0.0006367460839 | K67: 490 | L67: 0 | M67: 0 | N67: 4.654399384e-07
A68: 500 | B68: 0 | C68: 0 | D68: 0.0006395681798 | F68: 500 | G68: 0 | H68: 0 | I68: 0.0006348794914 | K68: 500 | L68: 0 | M68: 0 | N68: 4.640755222e-07
A69: 510 | B69: 0 | C69: 0 | D69: 0.0006376933144 | F69: 510 | G69: 0 | H69: 0 | I69: 0.0006330183707 | K69: 510 | L69: 0 | M69: 0 | N69: 4.627151057e-07
A70: 520 | B70: 0 | C70: 0 | D70: 0.0006358239452 | F70: 520 | G70: 0 | H70: 0 | I70: 0.0006311627058 | K70: 520 | L70: 0 | M70: 0 | N70: 4.613586771e-07
A71: 530 | B71: 0 | C71: 0 | D71: 0.0006339600559 | F71: 530 | G71: 0 | H71: 0 | I71: 0.0006293124807 | K71: 530 | L71: 0 | M71: 0 | N71: 4.600062249e-07
A72: 540 | B72: 0 | C72: 1.663115929e-30 | D72: 0.0006321016305 | F72: 540 | G72: 0 | H72: 1.618312543e-30 | I72: 0.0006274676795 | K72: 540 | L72: 0 | M72: 5.157668969e-34 | N72: 4.586577373e-07
A73: 550 | B73: 0 | C73: 7.34124386e-30 | D73: 0.0006302486529 | F73: 550 | G73: 0 | H73: 7.234929257e-30 | I73: 0.0006256282862 | K73: 550 | L73: 0 | M73: 4.176431367e-33 | N73: 4.573132028e-07
A74: 560 | B74: 0 | C74: 1.799102625e-29 | D74: 0.0006284011074 | F74: 560 | G74: 0 | H74: 1.77902337e-29 | I74: 0.000623794285 | K74: 560 | L74: 0 | M74: 1.14817606e-32 | N74: 4.559726097e-07
A75: 570 | B75: 0 | C75: 3.47202451e-29 | D75: 0.0006265589778 | F75: 570 | G75: 0 | H75: 3.439992109e-29 | I75: 0.0006219656601 | K75: 570 | L75: 0 | M75: 2.357050718e-32 | N75: 4.546359465e-07
A76: 580 | B76: 0 | C76: 5.664951827e-29 | D76: 0.0006247222483 | F76: 580 | G76: 0 | H76: 5.621754469e-29 | I76: 0.0006201423958 | K76: 580 | L76: 0 | M76: 4.038005995e-32 | N76: 4.533032017e-07
A77: 590 | B77: 0 | C77: 7.883100948e-29 | D77: 0.0006228909031 | F77: 590 | G77: 0 | H77: 7.836695408e-29 | I77: 0.0006183244762 | K77: 590 | L77: 0 | M77: 5.911860496e-32 | N77: 4.519743637e-07
A78: 600 | B78: 0 | C78: 8.979207787e-29 | D78: 0.0006210649265 | F78: 600 | G78: 0 | H78: 8.949638644e-29 | I78: 0.0006165118858 | K78: 600 | L78: 0 | M78: 7.233548904e-32 | N78: 4.506494212e-07
A79: 610 | B79: 0 | C79: 6.943444876e-29 | D79: 0.0006192443026 | F79: 610 | G79: 0 | H79: 6.967715021e-29 | I79: 0.0006147046089 | K79: 610 | L79: 0 | M79: 6.606359234e-32 | N79: 4.493283627e-07
A80: 620 | B80: 0 | C80: 0 | D80: 0.0006174290157 | F80: 620 | G80: 0 | H80: 0 | I80: 0.00061290263 | K80: 620 | L80: 0 | M80: 1.890169065e-32 | N80: 4.480111768e-07
A81: 630 | B81: 0 | C81: 0 | D81: 0.0006156190503 | F81: 630 | G81: 0 | H81: 0 | I81: 0.0006111059335 | K81: 630 | L81: 0 | M81: 0 | N81: 4.466978522e-07
A82: 640 | B82: 0 | C82: 0 | D82: 0.0006138143908 | F82: 640 | G82: 0 | H82: 0 | I82: 0.000609314504 | K82: 640 | L82: 0 | M82: 0 | N82: 4.453883775e-07
A83: 650 | B83: 0 | C83: 0 | D83: 0.0006120150215 | F83: 650 | G83: 0 | H83: 0 | I83: 0.0006075283259 | K83: 650 | L83: 0 | M83: 0 | N83: 4.440827415e-07
A84: 660 | B84: 0 | C84: 0 | D84: 0.000610220927 | F84: 660 | G84: 0 | H84: 0 | I84: 0.0006057473839 | K84: 660 | L84: 0 | M84: 0 | N84: 4.42780933e-07
A85: 670 | B85: 0 | C85: 0 | D85: 0.0006084320918 | F85: 670 | G85: 0 | H85: 0 | I85: 0.0006039716627 | K85: 670 | L85: 0 | M85: 0 | N85: 4.414829406e-07
A86: 680 | B86: 0 | C86: 0 | D86: 0.0006066485005 | F86: 680 | G86: 0 | H86: 0 | I86: 0.000602201147 | K86: 680 | L86: 0 | M86: 0 | N86: 4.401887532e-07
A87: 690 | B87: 0 | C87: 0 | D87: 0.0006048701377 | F87: 690 | G87: 0 | H87: 0 | I87: 0.0006004358214 | K87: 690 | L87: 0 | M87: 0 | N87: 4.388983596e-07
A88: 700 | B88: 0 | C88: 0 | D88: 0.0006030969881 | F88: 700 | G88: 0 | H88: 0 | I88: 0.0005986756708 | K88: 700 | L88: 0 | M88: 0 | N88: 4.376117488e-07
A89: 710 | B89: 0 | C89: 0 | D89: 0.0006013290364 | F89: 710 | G89: 0 | H89: 0 | I89: 0.00059692068 | K89: 710 | L89: 0 | M89: 0 | N89: 4.363289097e-07
A90: 720 | B90: 0 | C90: 2.889606907e-27 | D90: 0.0005995662674 | F90: 720 | G90: 0 | H90: 2.830941518e-27 | I90: 0.0005951708339 | K90: 720 | L90: 0 | M90: 1.258110887e-30 | N90: 4.350498311e-07
A91: 730 | B91: 0 | C91: 8.405776276e-27 | D91: 0.0005978086658 | F91: 730 | G91: 0 | H91: 8.301558703e-27 | I91: 0.0005934261173 | K91: 730 | L91: 0 | M91: 5.121586017e-30 | N91: 4.337745021e-07
A92: 740 | B92: 0 | C92: 1.615633995e-26 | D92: 0.0005960562166 | F92: 740 | G92: 0 | H92: 1.59972077e-26 | I92: 0.0005916865154 | K92: 740 | L92: 0 | M92: 1.075221914e-29 | N92: 4.325029117e-07
A93: 750 | B93: 0 | C93: 2.590739739e-26 | D93: 0.0005943089046 | F93: 750 | G93: 0 | H93: 2.568996597e-26 | I93: 0.000589952013 | K93: 750 | L93: 0 | M93: 1.807704412e-29 | N93: 4.312350488e-07
A94: 760 | B94: 0 | C94: 3.684017548e-26 | D94: 0.0005925667148 | F94: 760 | G94: 0 | H94: 3.657138429e-26 | I94: 0.0005882225952 | K94: 760 | L94: 0 | M94: 2.660288479e-29 | N94: 4.299709027e-07
A95: 770 | B95: 0 | C95: 4.738943693e-26 | D95: 0.0005908296321 | F95: 770 | G95: 0 | H95: 4.709121624e-26 | I95: 0.0005864982471 | K95: 770 | L95: 0 | M95: 3.528029741e-29 | N95: 4.287104623e-07
A96: 780 | B96: 0 | C96: 5.514530844e-26 | D96: 0.0005890976416 | F96: 780 | G96: 0 | H96: 5.485886183e-26 | I96: 0.0005847789539 | K96: 780 | L96: 0 | M96: 4.240770031e-29 | N96: 4.274537169e-07
A97: 790 | B97: 0 | C97: 5.686377232e-26 | D97: 0.0005873707284 | F97: 790 | G97: 0 | H97: 5.6652547e-26 | I97: 0.0005830647007 | K97: 790 | L97: 0 | M97: 4.561080225e-29 | N97: 4.262006555e-07
A98: 800 | B98: 0 | C98: 4.862899235e-26 | D98: 0.0005856488775 | F98: 800 | G98: 0 | H98: 4.857926407e-26 | I98: 0.0005813554727 | K98: 800 | L98: 0 | M98: 4.19323633e-29 | N98: 4.249512675e-07
A99: 810 | B99: 0 | C99: 2.620065986e-26 | D99: 0.0005839320742 | F99: 810 | G99: 0 | H99: 2.641863594e-26 | I99: 0.0005796512553 | K99: 810 | L99: 0 | M99: 2.806127169e-29 | N99: 4.23705542e-07
A100: 820 | B100: 0 | C100: 0 | D100: 0.0005822203036 | F100: 820 | G100: 0 | H100: 0 | I100: 0.0005779520337 | K100: 820 | L100: 0 | M100: 7.172903816e-31 | N100: 4.224634682e-07
A101: 830 | B101: 0 | C101: 0 | D101: 0.000580513551 | F101: 830 | G101: 0 | H101: 0 | I101: 0.0005762577933 | K101: 830 | L101: 0 | M101: 0 | N101: 4.212250356e-07
A102: 840 | B102: 0 | C102: 0 | D102: 0.0005788118016 | F102: 840 | G102: 0 | H102: 0 | I102: 0.0005745685195 | K102: 840 | L102: 0 | M102: 0 | N102: 4.199902333e-07
A103: 850 | B103: 0 | C103: 0 | D103: 0.0005771150408 | F103: 850 | G103: 0 | H103: 0 | I103: 0.0005728841978 | K103: 850 | L103: 0 | M103: 0 | N103: 4.187590509e-07
A104: 860 | B104: 0 | C104: 0 | D104: 0.0005754232541 | F104: 860 | G104: 0 | H104: 0 | I104: 0.0005712048135 | K104: 860 | L104: 0 | M104: 0 | N104: 4.175314775e-07
A105: 870 | B105: 0 | C105: 0 | D105: 0.0005737364267 | F105: 870 | G105: 0 | H105: 0 | I105: 0.0005695303523 | K105: 870 | L105: 0 | M105: 0 | N105: 4.163075028e-07
A106: 880 | B106: 0 | C106: 0 | D106: 0.0005720545442 | F106: 880 | G106: 0 | H106: 0 | I106: 0.0005678607997 | K106: 880 | L106: 0 | M106: 0 | N106: 4.150871161e-07
A107: 890 | B107: 2.58153651e-40 | C107: 0 | D107: 0.000570377592 | F107: 890 | G107: 2.413254104e-40 | H107: 0 | I107: 0.0005661961413 | K107: 890 | L107: 0 | M107: 0 | N107: 4.138703069e-07
A108: 900 | B108: 5.457594281e-40 | C108: 0 | D108: 0.0005687055557 | F108: 900 | G108: 5.351317727e-40 | H108: 0 | I108: 0.0005645363628 | K108: 900 | L108: 0 | M108: 0 | N108: 4.126570647e-07
A109: 910 | B109: 8.567787391e-40 | C109: 0 | D109: 0.000567038421 | F109: 910 | G109: 8.684813654e-40 | H109: 0 | I109: 0.0005628814498 | K109: 910 | L109: 0 | M109: 0 | N109: 4.114473791e-07
A110: 920 | B110: 1.011128999e-39 | C110: 0 | D110: 0.0005653761734 | F110: 920 | G110: 1.065686737e-39 | H110: 0 | I110: 0.0005612313882 | K110: 920 | L110: 0 | M110: 0 | N110: 4.102412396e-07
A111: 930 | B111: 7.165496454e-40 | C111: 0 | D111: 0.0005637187985 | F111: 930 | G111: 8.295477454e-40 | H111: 0 | I111: 0.0005595861636 | K111: 930 | L111: 0 | M111: 0 | N111: 4.090386359e-07
A112: 940 | B112: 0 | C112: 1.268933813e-25 | D112: 0.0005620662823 | F112: 940 | G112: 0 | H112: 1.20920612e-25 | I112: 0.000557945762 | K112: 940 | L112: 0 | M112: 0 | N112: 4.078395575e-07
A113: 950 | B113: 0 | C113: 7.169534008e-25 | D113: 0.0005604186102 | F113: 950 | G113: 0 | H113: 7.064802644e-25 | I113: 0.0005563101691 | K113: 950 | L113: 0 | M113: 4.002882393e-28 | N113: 4.066439942e-07
A114: 960 | B114: 0 | C114: 1.469126061e-24 | D114: 0.0005587757683 | F114: 960 | G114: 0 | H114: 1.453452406e-24 | I114: 0.0005546793708 | K114: 960 | L114: 0 | M114: 9.50969342e-28 | N114: 4.054519356e-07
A115: 970 | B115: 0 | C115: 2.366705418e-24 | D115: 0.0005571377423 | F115: 970 | G115: 0 | H115: 2.34538407e-24 | I115: 0.0005530533532 | K115: 970 | L115: 0 | M115: 1.620829686e-27 | N115: 4.042633715e-07
A116: 980 | B116: 0 | C116: 3.374180516e-24 | D116: 0.000555504518 | F116: 980 | G116: 0 | H116: 3.347133956e-24 | I116: 0.0005514321022 | K116: 980 | L116: 0 | M116: 2.38671477e-27 | N116: 4.030782916e-07
A117: 990 | B117: 0 | C117: 4.435323062e-24 | D117: 0.0005538760815 | F117: 990 | G117: 0 | H117: 4.402958954e-24 | I117: 0.0005498156038 | K117: 990 | L117: 0 | M117: 3.209665854e-27 | N117: 4.018966857e-07
A118: 1000 | B118: 1.653767221e-38 | C118: 5.472606041e-24 | D118: 0.0005522524187 | F118: 1000 | G118: 1.327278863e-38 | H118: 5.435921869e-24 | I118: 0.0005482038441 | K118: 1000 | L118: 0 | M118: 4.034149815e-27 | N118: 4.007185437e-07
A119: 1010 | B119: 5.313600403e-38 | C119: 6.38825672e-24 | D119: 0.0005506335156 | F119: 1010 | G119: 4.814530797e-38 | H119: 6.348922901e-24 | I119: 0.0005465968092 | K119: 1010 | L119: 0 | M119: 4.788500403e-27 | N119: 3.995438553e-07
A120: 1020 | B120: 1.160008672e-37 | C120: 7.067162632e-24 | D120: 0.0005490193582 | F120: 1020 | G120: 1.088667188e-37 | H120: 7.027573212e-24 | I120: 0.0005449944852 | K120: 1020 | L120: 0 | M120: 5.386760643e-27 | N120: 3.983726105e-07
A121: 1030 | B121: 2.139858281e-37 | C121: 7.3817364e-24 | D121: 0.0005474099327 | F121: 1030 | G121: 2.039994959e-37 | H121: 7.345017e-24 | I121: 0.0005433968584 | K121: 1030 | L121: 0 | M121: 5.732033773e-27 | N121: 3.972047991e-07
A122: 1040 | B122: 3.585500375e-37 | C122: 7.198711192e-24 | D122: 0.0005458052251 | F122: 1040 | G122: 3.441420457e-37 | H122: 7.168675249e-24 | I122: 0.000541803915 | K122: 1040 | L122: 0 | M122: 5.721349756e-27 | N122: 3.960404111e-07
A123: 1050 | B123: 5.683109527e-37 | C123: 6.387691596e-24 | D123: 0.0005442052216 | F123: 1050 | G123: 5.45977183e-37 | H123: 6.368738138e-24 | I123: 0.0005402156412 | K123: 1050 | L123: 1.24303931e-40 | M123: 5.251942161e-27 | N123: 3.948794364e-07
A124: 1060 | B124: 8.788306435e-37 | C124: 4.831134801e-24 | D124: 0.0005426099085 | F124: 1060 | G124: 8.413593307e-37 | H124: 4.828083954e-24 | I124: 0.0005386320233 | K124: 1060 | L124: 2.70734889e-40 | M124: 4.228713754e-27 | N124: 3.937218651e-07
A125: 1070 | B125: 1.36034331e-36 | C125: 2.435294864e-24 | D125: 0.000541019272 | F125: 1070 | G125: 1.294143905e-36 | H125: 2.453160834e-24 | I125: 0.0005370530478 | K125: 1070 | L125: 4.746561304e-40 | M125: 2.572556515e-27 | N125: 3.925676872e-07
A126: 1080 | B126: 2.146484463e-36 | C126: 0 | D126: 0.0005394332983 | F126: 1080 | G126: 2.027824438e-36 | H126: 0 | I126: 0.0005354787009 | K126: 1080 | L126: 7.333717127e-40 | M126: 2.290915291e-28 | N126: 3.914168927e-07
A127: 1090 | B127: 3.477248606e-36 | C127: 0 | D127: 0.0005378519739 | F127: 1090 | G127: 3.267203257e-36 | H127: 0 | I127: 0.0005339089692 | K127: 1090 | L127: 1.044006881e-39 | M127: 0 | N127: 3.902694717e-07
A128: 1100 | B128: 5.759445049e-36 | C128: 0 | D128: 0.000536275285 | F128: 1100 | G128: 5.397333146e-36 | H128: 0 | I128: 0.0005323438391 | K128: 1100 | L128: 1.419846632e-39 | M128: 0 | N128: 3.891254143e-07
A129: 1110 | B129: 9.648016614e-36 | C129: 0 | D129: 0.0005347032181 | F129: 1110 | G129: 9.043000246e-36 | H129: 0 | I129: 0.0005307832971 | K129: 1110 | L129: 1.921348983e-39 | M129: 0 | N129: 3.879847106e-07
A130: 1120 | B130: 1.615201865e-35 | C130: 0 | D130: 0.0005331357597 | F130: 1120 | G130: 1.517235963e-35 | H130: 0 | I130: 0.0005292273297 | K130: 1120 | L130: 2.705788256e-39 | M130: 0 | N130: 3.868473509e-07
A131: 1130 | B131: 2.677017355e-35 | C131: 0 | D131: 0.0005315728962 | F131: 1130 | G131: 2.522934647e-35 | H131: 0 | I131: 0.0005276759236 | K131: 1130 | L131: 4.09836817e-39 | M131: 0 | N131: 3.857133253e-07
A132: 1140 | B132: 4.366303244e-35 | C132: 0 | D132: 0.0005300146142 | F132: 1140 | G132: 4.130151166e-35 | H132: 0 | I132: 0.0005261290654 | K132: 1140 | L132: 6.686077393e-39 | M132: 0 | N132: 3.84582624e-07
A133: 1150 | B133: 6.987202294e-35 | C133: 0 | D133: 0.0005284609002 | F133: 1150 | G133: 6.633315061e-35 | H133: 0 | I133: 0.0005245867417 | K133: 1150 | L133: 1.143404748e-38 | M133: 0 | N133: 3.834552374e-07
A134: 1160 | B134: 1.095998083e-34 | C134: 0 | D134: 0.0005269117408 | F134: 1160 | G134: 1.043978383e-34 | H134: 0 | I134: 0.0005230489393 | K134: 1160 | L134: 1.98234724e-38 | M134: 0 | N134: 3.823311556e-07
A135: 1170 | B135: 1.68570638e-34 | C135: 0 | D135: 0.0005253671228 | F135: 1170 | G135: 1.610490326e-34 | H135: 0 | I135: 0.0005215156448 | K135: 1170 | L135: 3.401116576e-38 | M135: 0 | N135: 3.81210369e-07
A136: 1180 | B136: 2.544922238e-34 | C136: 0 | D136: 0.0005238270327 | F136: 1180 | G136: 2.437708186e-34 | H136: 0 | I136: 0.0005199868452 | K136: 1180 | L136: 5.70144244e-38 | M136: 0 | N136: 3.80092868e-07
A137: 1190 | B137: 3.776398046e-34 | C137: 0 | D137: 0.0005222914573 | F137: 1190 | G137: 3.625508684e-34 | H137: 0 | I137: 0.0005184625271 | K137: 1190 | L137: 9.29315582e-38 | M137: 0 | N137: 3.789786428e-07
A138: 1200 | B138: 5.515753669e-34 | C138: 0 | D138: 0.0005207603834 | F138: 1200 | G138: 5.305912049e-34 | H138: 0 | I138: 0.0005169426776 | K138: 1200 | L138: 1.472180795e-37 | M138: 0 | N138: 3.77867684e-07
A139: 1210 | B139: 7.939967589e-34 | C139: 0 | D139: 0.0005192337978 | F139: 1210 | G139: 7.65155648e-34 | H139: 0 | I139: 0.0005154272834 | K139: 1210 | L139: 2.270499274e-37 | M139: 0 | N139: 3.767599819e-07
A140: 1220 | B140: 1.127678692e-33 | C140: 0 | D140: 0.0005177116873 | F140: 1220 | G140: 1.08852185e-33 | H140: 0 | I140: 0.0005139163315 | K140: 1220 | L140: 3.41815718e-37 | M140: 0 | N140: 3.75655527e-07
A141: 1230 | B141: 1.581416603e-33 | C141: 0 | D141: 0.0005161940387 | F141: 1230 | G141: 1.528956692e-33 | H141: 0 | I141: 0.0005124098089 | K141: 1230 | L141: 5.037859026e-37 | M141: 0 | N141: 3.745543097e-07
A142: 1240 | B142: 2.190812047e-33 | C142: 0 | D142: 0.0005146808391 | F142: 1240 | G142: 2.121563346e-33 | H142: 0 | I142: 0.0005109077026 | K142: 1240 | L142: 7.290026014e-37 | M142: 0 | N142: 3.734563206e-07
A143: 1250 | B143: 2.998643117e-33 | C143: 1.522605184e-23 | D143: 0.0005131720754 | F143: 1250 | G143: 2.908754759e-33 | H143: 1.490254024e-23 | I143: 0.0005094099996 | K143: 1250 | L143: 1.038413592e-36 | M143: 6.201813621e-27 | N143: 3.723615502e-07
A144: 1260 | B144: 4.054445619e-33 | C144: 4.032014482e-23 | D144: 0.0005116677346 | F144: 1260 | G144: 3.939991661e-33 | H144: 3.982568587e-23 | I144: 0.0005079166871 | K144: 1260 | L144: 1.459231158e-36 | M144: 2.466775576e-26 | N144: 3.71269989e-07
A145: 1270 | B145: 5.412793145e-33 | C145: 6.885397968e-23 | D145: 0.0005101678036 | F145: 1270 | G145: 5.270286142e-33 | H145: 6.817392575e-23 | I145: 0.0005064277522 | K145: 1270 | L145: 2.026425785e-36 | M145: 4.586815903e-26 | N145: 3.701816278e-07
A146: 1280 | B146: 7.129612079e-33 | C146: 1.002884632e-22 | D146: 0.0005086722697 | F146: 1280 | G146: 6.95681931e-33 | H146: 9.941256466e-23 | I146: 0.0005049431821 | K146: 1280 | L146: 2.784162531e-36 | M146: 6.942408183e-26 | N146: 3.69096457e-07
A147: 1290 | B147: 9.255709177e-33 | C147: 1.339052129e-22 | D147: 0.0005071811198 | F147: 1290 | G147: 9.05286173e-33 | H147: 1.328284502e-22 | I147: 0.0005034629638 | K147: 1290 | L147: 3.786853894e-36 | M147: 9.481603509e-26 | N147: 3.680144673e-07
A148: 1300 | B148: 1.182653573e-32 | C148: 1.688181123e-22 | D148: 0.0005056943412 | F148: 1300 | G148: 1.159802893e-32 | H148: 1.675413583e-22 | I148: 0.0005019870848 | K148: 1300 | L148: 5.09934049e-36 | M148: 1.21390486e-25 | N148: 3.669356495e-07
A149: 1310 | B149: 1.484707723e-32 | C149: 2.039943054e-22 | D149: 0.0005042119209 | F149: 1310 | G149: 1.460376482e-32 | H149: 2.02524751e-22 | I149: 0.0005005155323 | K149: 1310 | L149: 6.795527482e-36 | M149: 1.483732873e-25 | N149: 3.658599941e-07
A150: 1320 | B150: 1.827065757e-32 | C150: 2.382852356e-22 | D150: 0.0005027338464 | F150: 1320 | G150: 1.803284001e-32 | H150: 2.36636507e-22 | I150: 0.0004990482935 | K150: 1320 | L150: 8.954612025e-36 | M150: 1.748904608e-25 | N150: 3.64787492e-07
A151: 1330 | B151: 2.197040261e-32 | C151: 2.70468222e-22 | D151: 0.0005012601047 | F151: 1330 | G151: 2.177159868e-32 | H151: 2.686601118e-22 | I151: 0.0004975853559 | K151: 1330 | L151: 1.165384986e-35 | M151: 1.99996657e-25 | N151: 3.637181339e-07
A152: 1340 | B152: 2.570214161e-32 | C152: 2.992990048e-22 | D152: 0.0004997906833 | F152: 1340 | G152: 2.559371048e-32 | H152: 2.973567321e-22 | I152: 0.0004961267068 | K152: 1340 | L152: 1.495664447e-35 | M152: 2.227115323e-25 | N152: 3.626519105e-07
A153: 1350 | B153: 2.905766618e-32 | C153: 3.235756978e-22 | D153: 0.0004983255694 | F153: 1350 | G153: 2.911430924e-32 | H153: 3.215286044e-22 | I153: 0.0004946723337 | K153: 1350 | L153: 1.889461784e-35 | M153: 2.420642521e-25 | N153: 3.615888128e-07
A154: 1360 | B154: 3.140754645e-32 | C154: 3.422146827e-22 | D154: 0.0004968647504 | F154: 1360 | G154: 3.173366085e-32 | H154: 3.400942598e-22 | I154: 0.000493222224 | K154: 1360 | L154: 2.344225479e-35 | M154: 2.571463516e-25 | N154: 3.605288315e-07
A155: 1370 | B155: 3.18331628e-32 | C155: 3.543391904e-22 | D155: 0.0004954082137 | F155: 1370 | G155: 3.256993627e-32 | H155: 3.521763153e-22 | I155: 0.0004917763652 | K155: 1370 | L155: 2.84827204e-35 | M155: 2.671732859e-25 | N155: 3.594719574e-07
A156: 1380 | B156: 2.904829398e-32 | C156: 3.593816652e-22 | D156: 0.0004939559469 | F156: 1380 | G156: 3.038131683e-32 | H156: 3.572029058e-22 | I156: 0.0004903347449 | K156: 1380 | L156: 3.376354773e-35 | M156: 2.715551972e-25 | N156: 3.584181815e-07
A157: 1390 | B157: 2.13115586e-32 | C157: 3.572015245e-22 | D157: 0.0004925079372 | F157: 1390 | G157: 2.34785787e-32 | H157: 3.550243418e-22 | I157: 0.0004888973507 | K157: 1390 | L157: 3.884109847e-35 | M157: 2.699777313e-25 | N157: 3.573674948e-07
A158: 1400 | B158: 6.332293077e-33 | C158: 3.482206372e-22 | D158: 0.0004910641724 | F158: 1400 | G158: 9.630545959e-33 | H158: 3.46047278e-22 | I158: 0.0004874641701 | K158: 1400 | L158: 4.301303299e-35 | M158: 2.624941722e-25 | N158: 3.56319888e-07
A159: 1410 | B159: 0 | C159: 3.335797859e-22 | D159: 0.0004896246398 | F159: 1410 | G159: 0 | H159: 3.3138961e-22 | I159: 0.0004860351908 | K159: 1410 | L159: 4.523851556e-35 | M159: 2.496307582e-25 | N159: 3.552753523e-07
A160: 1420 | B160: 0 | C160: 3.153205726e-22 | D160: 0.0004881893272 | F160: 1420 | G160: 0 | H160: 3.130604967e-22 | I160: 0.0004846104005 | K160: 1420 | L160: 4.404656211e-35 | M160: 2.325078051e-25 | N160: 3.542338786e-07
A161: 1430 | B161: 0 | C161: 2.965987356e-22 | D161: 0.0004867582222 | F161: 1430 | G161: 0 | H161: 2.941713966e-22 | I161: 0.0004831897869 | K161: 1430 | L161: 3.743386118e-35 | M161: 2.129802379e-25 | N161: 3.531954579e-07
A162: 1440 | B162: 0 | C162: 2.819366885e-22 | D162: 0.0004853313124 | F162: 1440 | G162: 0 | H162: 2.791858303e-22 | I162: 0.0004817733378 | K162: 1440 | L162: 2.275462507e-35 | M162: 1.938023258e-25 | N162: 3.521600813e-07
A163: 1450 | B163: 0 | C163: 2.77525334e-22 | D163: 0.0004839085855 | F163: 1450 | G163: 0 | H163: 2.742177978e-22 | I163: 0.000480361041 | K163: 1450 | L163: 0 | M163: 1.788228909e-25 | N163: 3.511277399e-07
A164: 1460 | B164: 0 | C164: 2.915879029e-22 | D164: 0.0004824900292 | F164: 1460 | G164: 0 | H164: 2.873914494e-22 | I164: 0.0004789528842 | K164: 1460 | L164: 0 | M164: 1.732190196e-25 | N164: 3.500984247e-07
A165: 1470 | B165: 0 | C165: 3.348217807e-22 | D165: 0.0004810756314 | F165: 1470 | G165: 0 | H165: 3.292777864e-22 | I165: 0.0004775488553 | K165: 1470 | L165: 0 | M165: 1.837784276e-25 | N165: 3.490721269e-07
A166: 1480 | B166: 0 | C166: 4.209380971e-22 | D166: 0.0004796653798 | F166: 1480 | G166: 0 | H166: 4.134279395e-22 | I166: 0.0004761489424 | K166: 1480 | L166: 0 | M166: 2.192431375e-25 | N166: 3.480488377e-07
A167: 1490 | B167: 0 | C167: 5.673233437e-22 | D167: 0.0004782592624 | F167: 1490 | G167: 0 | H167: 5.570270173e-22 | I167: 0.0004747531332 | K167: 1490 | L167: 0 | M167: 2.907300907e-25 | N167: 3.470285482e-07
A168: 1500 | B168: 0 | C168: 7.958525667e-22 | D168: 0.0004768572668 | F168: 1500 | G168: 0 | H168: 7.816977435e-22 | I168: 0.0004733614157 | K168: 1500 | L168: 0 | M168: 4.122478079e-25 | N168: 3.460112496e-07
A169: 1510 | B169: 0 | C169: 1.133889856e-21 | D169: 0.0004754593812 | F169: 1510 | G169: 0 | H169: 1.114489209e-21 | I169: 0.000471973778 | K169: 1510 | L169: 0 | M169: 6.013322904e-25 | N169: 3.449969332e-07
A170: 1520 | B170: 0 | C170: 1.615519069e-21 | D170: 0.0004740655934 | F170: 1520 | G170: 0 | H170: 1.589093212e-21 | I170: 0.0004705902081 | K170: 1520 | L170: 0 | M170: 8.798301316e-25 | N170: 3.439855902e-07
A171: 1530 | B171: 0 | C171: 2.283056112e-21 | D171: 0.0004726758915 | F171: 1530 | G171: 0 | H171: 2.247338947e-21 | I171: 0.0004692106941 | K171: 1530 | L171: 0 | M171: 1.274862364e-24 | N171: 3.42977212e-07
A172: 1540 | B172: 0 | C172: 3.18890387e-21 | D172: 0.0004712902634 | F172: 1540 | G172: 0 | H172: 3.141026489e-21 | I172: 0.0004678352241 | K172: 1540 | L172: 0 | M172: 1.820009032e-24 | N172: 3.419717897e-07
A173: 1550 | B173: 0 | C173: 4.397822159e-21 | D173: 0.0004699086972 | F173: 1550 | G173: 0 | H173: 4.334170664e-21 | I173: 0.0004664637862 | K173: 1550 | L173: 0 | M173: 2.556761976e-24 | N173: 3.409693148e-07
A174: 1560 | B174: 0 | C174: 5.989698161e-21 | D174: 0.000468531181 | F174: 1560 | G174: 0 | H174: 5.905739857e-21 | I174: 0.0004650963686 | K174: 1560 | L174: 0 | M174: 3.536301996e-24 | N174: 3.399697786e-07
A175: 1570 | B175: 0 | C175: 8.062917875e-21 | D175: 0.0004671577029 | F175: 1570 | G175: 0 | H175: 7.952989242e-21 | I175: 0.0004637329595 | K175: 1570 | L175: 0 | M175: 4.821666582e-24 | N175: 3.389731725e-07
A176: 1580 | B176: 0 | C176: 1.073845651e-20 | D176: 0.0004657882511 | F176: 1580 | G176: 0 | H176: 1.059550511e-20 | I176: 0.0004623735472 | K176: 1580 | L176: 0 | M176: 6.49038597e-24 | N176: 3.379794879e-07
A177: 1590 | B177: 0 | C177: 1.41648257e-20 | D177: 0.0004644228138 | F177: 1590 | G177: 0 | H177: 1.398009675e-20 | I177: 0.0004610181199 | K177: 1590 | L177: 0 | M177: 8.63767859e-24 | N177: 3.369887162e-07
A178: 1600 | B178: 0 | C178: 1.852403832e-20 | D178: 0.0004630613792 | F178: 1600 | G178: 0 | H178: 1.828669493e-20 | I178: 0.0004596666661 | K178: 1600 | L178: 0 | M178: 1.138031223e-23 | N178: 3.360008489e-07
A179: 1610 | B179: 0 | C179: 2.403877797e-20 | D179: 0.0004617039356 | F179: 1610 | G179: 0 | H179: 2.373544222e-20 | I179: 0.0004583191739 | K179: 1610 | L179: 0 | M179: 1.486125477e-23 | N179: 3.350158776e-07
A180: 1620 | B180: 0 | C180: 3.098099001e-20 | D180: 0.0004603504713 | F180: 1620 | G180: 0 | H180: 3.059518969e-20 | I180: 0.0004569756319 | K180: 1620 | L180: 0 | M180: 1.925525839e-23 | N180: 3.340337936e-07
A181: 1630 | B181: 0 | C181: 3.968214527e-20 | D181: 0.0004590009746 | F181: 1630 | G181: 0 | H181: 3.919364856e-20 | I181: 0.0004556360284 | K181: 1630 | L181: 0 | M181: 2.477554397e-23 | N181: 3.330545886e-07
A182: 1640 | B182: 0 | C182: 5.054546627e-20 | D182: 0.0004576554339 | F182: 1640 | G182: 0 | H182: 4.992948376e-20 | I182: 0.0004543003518 | K182: 1640 | L182: 0 | M182: 3.168177835e-23 | N182: 3.32078254e-07
A183: 1650 | B183: 0 | C183: 6.406044995e-20 | D183: 0.0004563138376 | F183: 1650 | G183: 0 | H183: 6.328667981e-20 | I183: 0.0004529685908 | K183: 1650 | L183: 0 | M183: 4.028956695e-23 | N183: 3.311047815e-07
A184: 1660 | B184: 1.827170132e-30 | C184: 8.082007048e-20 | D184: 0.0004549761741 | F184: 1660 | G184: 1.01965245e-30 | H184: 7.985155894e-20 | I184: 0.0004516407338 | K184: 1660 | L184: 0 | M184: 5.098171737e-23 | N184: 3.301341628e-07
A185: 1670 | B185: 7.742164939e-30 | C185: 1.015411023e-19 | D185: 0.0004536424319 | F185: 1670 | G185: 6.711499872e-30 | H185: 1.00332887e-19 | I185: 0.0004503167693 | K185: 1670 | L185: 0 | M185: 6.422156787e-23 | N185: 3.291663893e-07
A186: 1680 | B186: 1.568309331e-29 | C186: 1.270880667e-19 | D186: 0.0004523125995 | F186: 1680 | G186: 1.439759823e-29 | H186: 1.255855653e-19 | I186: 0.0004489966859 | K186: 1680 | L186: 0 | M186: 8.056871717e-23 | N186: 3.282014529e-07
A187: 1690 | B187: 2.601530569e-29 | C187: 1.585013771e-19 | D187: 0.0004509866655 | F187: 1690 | G187: 2.444494124e-29 | H187: 1.566384782e-19 | I187: 0.0004476804723 | K187: 1690 | L187: 0 | M187: 1.006975403e-22 | N187: 3.272393451e-07
A188: 1700 | B188: 3.911572845e-29 | C188: 1.970303371e-19 | D188: 0.0004496646184 | F188: 1700 | G188: 3.723417283e-29 | H188: 1.947271435e-19 | I188: 0.0004463681172 | K188: 1700 | L188: 0 | M188: 1.254189292e-22 | N188: 3.262800577e-07
A189: 1710 | B189: 5.535854049e-29 | C189: 2.441717366e-19 | D189: 0.0004483464468 | F189: 1710 | G189: 5.314575062e-29 | H189: 2.413319041e-19 | I189: 0.0004450596091 | K189: 1710 | L189: 3.574388433e-33 | M189: 1.557057581e-22 | N189: 3.253235824e-07
A190: 1720 | B190: 7.509648335e-29 | C190: 3.017148904e-19 | D190: 0.0004470321394 | F190: 1720 | G190: 7.254176957e-29 | H190: 2.982224959e-19 | I190: 0.0004437549369 | K190: 1720 | L190: 1.164988031e-32 | M190: 1.927226403e-22 | N190: 3.243699109e-07
A191: 1730 | B191: 9.863737225e-29 | C191: 3.717940747e-19 | D191: 0.0004457216848 | F191: 1730 | G191: 9.574299804e-29 | H191: 3.6750994e-19 | I191: 0.0004424540893 | K191: 1730 | L191: 2.237650479e-32 | M191: 2.378606203e-22 | N191: 3.234190351e-07
A192: 1740 | B192: 1.26215466e-28 | C192: 4.569494432e-19 | D192: 0.0004444150717 | F192: 1740 | G192: 1.230007647e-28 | H192: 4.517068278e-19 | I192: 0.000441157055 | K192: 1740 | L192: 3.620963543e-32 | M192: 2.927775289e-22 | N192: 3.224709468e-07
A193: 1750 | B193: 1.5795748e-28 | C193: 5.601976404e-19 | D193: 0.0004431122889 | F193: 1750 | G193: 1.544634567e-28 | H193: 5.537972064e-19 | I193: 0.000439863823 | K193: 1750 | L193: 5.361354971e-32 | M193: 3.594448222e-22 | N193: 3.215256377e-07
A194: 1760 | B194: 1.938431919e-28 | C194: 6.851134831e-19 | D194: 0.0004418133252 | F194: 1760 | G194: 1.901375498e-28 | H194: 6.77317422e-19 | I194: 0.000438574382 | K194: 1760 | L194: 7.504250465e-32 | M194: 4.402018312e-22 | N194: 3.205830998e-07
A195: 1770 | B195: 2.33660795e-28 | C195: 8.359242513e-19 | D195: 0.0004405181693 | F195: 1770 | G195: 2.298432935e-28 | H195: 8.264494466e-19 | I195: 0.0004372887209 | K195: 1770 | L195: 1.009164751e-31 | M195: 5.378184624e-22 | N195: 3.196433248e-07
A196: 1780 | B196: 2.769574008e-28 | C196: 1.017618313e-18 | D196: 0.0004392268101 | F196: 1780 | G196: 2.731654168e-28 | H196: 1.006128397e-18 | I196: 0.0004360068287 | K196: 1780 | L196: 1.315911025e-31 | M196: 6.555675179e-22 | N196: 3.187063048e-07
A197: 1790 | B197: 3.229853824e-28 | C197: 1.23607002e-18 | D197: 0.0004379392365 | F197: 1790 | G197: 3.193995033e-28 | H197: 1.22216616e-18 | I197: 0.0004347286943 | K197: 1790 | L197: 1.673215266e-31 | M197: 7.973079448e-22 | N197: 3.177720316e-07
A198: 1800 | B198: 3.706455725e-28 | C198: 1.498183023e-18 | D198: 0.0004366554373 | F198: 1800 | G198: 3.674950108e-28 | H198: 1.481393266e-18 | I198: 0.0004334543067 | K198: 1800 | L198: 2.082199378e-31 | M198: 9.675804763e-22 | N198: 3.168404972e-07
A199: 1810 | B199: 4.184286922e-28 | C199: 1.812054423e-18 | D199: 0.0004353754015 | F199: 1810 | G199: 4.159962648e-28 | H199: 1.791821384e-18 | I199: 0.0004321836549 | K199: 1810 | L199: 2.542068974e-31 | M199: 1.1717173e-21 | N199: 3.159116935e-07
A200: 1820 | B200: 4.643567735e-28 | C200: 2.187162435e-18 | D200: 0.0004340991181 | F200: 1820 | G200: 4.629831462e-28 | H200: 2.162829097e-18 | I200: 0.0004309167279 | K200: 1820 | L200: 3.049567312e-31 | M200: 1.41596757e-21 | N200: 3.149856126e-07
A201: 1830 | B201: 5.059267464e-28 | C201: 2.634580522e-18 | D201: 0.0004328265761 | F201: 1830 | G201: 5.060135993e-28 | H201: 2.605373908e-18 | I201: 0.0004296535149 | K201: 1830 | L201: 3.598376002e-31 | M201: 1.707640795e-21 | N201: 3.140622465e-07
A202: 1840 | B202: 5.400587742e-28 | C202: 3.167221327e-18 | D202: 0.0004315577645 | F202: 1840 | G202: 5.42070506e-28 | H202: 3.132233732e-18 | I202: 0.000428394005 | K202: 1840 | L202: 4.178471994e-31 | M202: 2.055270338e-21 | N202: 3.131415871e-07
A203: 1850 | B203: 5.630523376e-28 | C203: 3.800114028e-18 | D203: 0.0004302926723 | F203: 1850 | G203: 5.675158901e-28 | H203: 3.758281504e-18 | I203: 0.0004271381872 | K203: 1850 | L203: 4.775454212e-31 | M203: 2.468799524e-21 | N203: 3.122236266e-07
A204: 1860 | B204: 5.70553456e-28 | C204: 4.550719163e-18 | D204: 0.0004290312887 | F204: 1860 | G204: 5.780558153e-28 | H204: 4.500796891e-18 | I204: 0.0004258860509 | K204: 1860 | L204: 5.36985737e-31 | M204: 2.959793118e-21 | N204: 3.113083571e-07
A205: 1870 | B205: 5.575367993e-28 | C205: 5.439285388e-18 | D205: 0.0004277736028 | F205: 1870 | G205: 5.687197082e-28 | H205: 5.37981953e-18 | I205: 0.0004246375851 | K205: 1870 | L205: 5.936474999e-31 | M205: 3.541677201e-21 | N205: 3.103957707e-07
A206: 1880 | B206: 5.183067415e-28 | C206: 6.489253049e-18 | D206: 0.0004265196037 | F206: 1880 | G206: 5.338581565e-28 | H206: 6.418548644e-18 | I206: 0.0004233927791 | K206: 1880 | L206: 6.443718312e-31 | M206: 4.230010812e-21 | N206: 3.094858594e-07
A207: 1890 | B207: 4.465216455e-28 | C207: 7.727709991e-18 | D207: 0.0004252692807 | F207: 1890 | G207: 4.671634764e-28 | H207: 7.643794381e-18 | I207: 0.0004221516222 | K207: 1890 | L207: 6.853042195e-31 | M207: 5.042793046e-21 | N207: 3.085786156e-07
... 2228 more rows

Sheet User_Water_Balance
D1: RAINFALL
A2: Input | D2: Annual Effective Rainfall | E2: 255 | F2: mm | I2: FLUX AND DILUTION CALCULATION
A3: Calculations | D3: Effective Rainfall | E3: =E2/(60*60*24*365)/1000 -> 8.085996956e-09 | F3: m3/s
I4: Void C
D5: VOID PARAMETERS
D6: Void Area | E6: =119768+29777 -> 149545 | F6: m2 | I6: Max Elevation of void surface | J6: =maxele_c -> 58.59 | K6: mAOD
D7: Void Perimeter | E7: =1428+731 -> 2159 | F7: m | I7: Average GW head downstream | J7: =gwele_c -> 54.5 | K7: mAOD
I8: Distance from centre of void to perimeter | J8: =distancetoedge_c -> 170 | K8: m
D9: Restoration Material Thickness | E9: =maxele_c-E11 -> 5.43 | F9: m | I9: Average depth of restoration material | J9: =thick_c -> 5.43 | K9: m
I10: Perimeter of void | J10: =peri_c -> 2159 | K10: m
D11: Base of Void C | E11: 53.16 | F11: mAOD | I11: K | J11: =AL_K -> 1e-07 | K11: m/s
D12: Maximum Elevation | E12: 58.59 | F12: mAOD | I12: Qs | J12: =((J6-J7)/J8)*J9*J10*J11 -> 2.8205049e-05 | K12: m3/s
D14: Groundwater Elevation at perimeter | E14: 54.5 | F14: mAOD | I14: Qer_c | J14: =effective_rainfall*area_c -> 0.001209220415 | K14: m3/s
D16: Distance from centre void to edge | E16: 170 | F16: m | I16: QRO_c | J16: =J14-J12 -> 0.001181015366 | K16: m3/s
D18: Total Volume of restoration material | E18: 1153000 | F18: m3
D19: Volume in Void C | E19: 322827.9876 | F19: m3
D21: AQUIFER PROPERTIES
D23: Attenuation Layer Hydraulic Conductivity | E23: 1e-07 | F23: m/s
D24: Beenham Grange Formation Hydraulic Conductivity | E24: 0.001412 | F24: m/s
D25: Attenuation Layer Hydraulic Gradient | E25: =(maxele_c-gwele_c)/distancetoedge_c -> 0.02405882353
D26: Beenham Grange Formation Hydraulic Gradient | E26: 0.003
D27: Attenuation Layer Bulk Density | E27: 2000 | F27: kg/m3
D28: Beenham Grange Formation Bulk Density | E28: 1600 | F28: kg/m3
D29: Attenuation Layer Porosity | E29: 0.05
D30: Beenham Grange Formation Porosity | E30: 0.2
D31: Tortuosity | E31: 5
D33: RECEPTOR TRAVEL DISTANCES
D35: Attenutation Layer Travel Distance | E35: 1 | F35: m
D36: Distance to River Enborne | E36: 30 | F36: m
D37: Distance to GW Receptor | E37: 1 | F37: m
D40: River Flows
D41: River Enborne Q95 | E41: 0.168 | F41: m3/s
E43: =Q_riverEn/0.00000282 -> 59574.46809

Sheet User_Attenuation_Parameters
D2: Attenuation Layer | G2: Beenham Grange Formation
A3: Parameter | D3: Kd (L/kg) | E3: Comment | G3: Kd (L/kg) | H3: Comment
A4: Ammoniacial Nitrogen | D4: 0.5 | E4: Mid-range value for engineered clay barriers in Table 4.1 of Buss et al. (2003) | G4: 0 | H4: Conservative Assumption
A5: Arsenic | B5: As | C5: Haz | D5: 137 | E5: Midpoint from range by Golder Associates (2007) | G5: 25 | H5: Minimum value from range by Golder Associates (2007)
A6: Barium | B6: Ba | C6: Non Haz | D6: 17 | E6: Value at pH 8 (representative of Water Chemistry) for unspecified material by Golder Associates (2003) | G6: 17 | H6: Value at pH 8 (representative of Water Chemistry) for unspecified material by Golder Associates (2003)
A7: Cadmium | B7: Cd | C7: Non Haz | D7: 222 | E7: Value for glacial till (representative of clayey conditions) Golder Associates (2003) | G7: 74 | H7: Value for sand Golder Associates (2003)
A8: Total Chromium | B8: Cr total | C8: Haz | D8: 966 | E8: Value for glacial till (representative of clayey conditions) Golder Associates (2003) | G8: 67 | H8: Value for sand Golder Associates (2003)
A9: Copper | B9: Cu | C9: Non Haz | D9: 126.8 | E9: Value for glacial till (representative of clayey conditions) Golder Associates (2003) | G9: 295 | H9: Value for unspecified conditions, Golder Associates(2003)
A10: Mercury | B10: Hg | C10: Haz | D10: 2142 | E10: Midpoint from range by Golder Associates (2007) | G10: 450 | H10: Value for sand Golder Associates (2003)
A11: Molybdenum | B11: Mo | C11: Non Haz | D11: 110 | E11: Value for unspecified conditions, Golder Associates(2003) | G11: 110 | H11: Value for unspecified conditions, Golder Associates(2003)
A12: Nickel | B12: Ni | C12: Non Haz | D12: 410 | E12: Midpoint from range by Golder Associates (2007) | G12: 400 | H12: Value for sand Golder Associates (2003)
A13: Lead | B13: Pb | C13: Haz | D13: 434.6 | E13: Value for glacial till (representative of clayey conditions) Golder Associates (2003) | G13: 270 | H13: Value for sand Golder Associates (2003)
A14: Antimony | B14: Sb | C14: Non Haz | D14: 140 | E14: Geometric mean value for clay (Sheppard et al., 2009) | G14: 17 | H14: Value for sand Golder Associates (2003)
A15: Selenium | B15: Se | C15: Non Haz | D15: 9.5 | E15: Value for unspecified conditions, Golder Associates(2003) | G15: 9.5 | H15: Value for unspecified conditions, Golder Associates(2003)
A16: Zinc | B16: Zn | C16: Non Haz | D16: 20.7 | E16: Value for glacial till (representative of clayey conditions) Golder Associates (2003) | G16: 200 | H16: Value for sand Golder Associates (2003)
A17: Chloride | B17: Cl | C17: Non Haz | D17: 0 | E17: assume zero retardation | G17: 0 | H17: assume zero retardation
A18: Fluoride | B18: F | C18: Non Haz
A19: Sulphate(a) | B19: SO4 | C19: Non Haz | D19: 0 | E19: assume zero retardation | G19: 0 | H19: assume zero retardation
C22: Free Water Diffusion Coefficient | D22: 2e-09

Sheet User_ScreeningAssessment_VoidC
A1: Waste Source Screening Assessment - South of River Enborne
A2: Chemical Name | B2: Symbol | C2: Haz / Non Haz | D2: Pass/Fail | E2: Source Term concentration (mg/l) | F2: Max acceptable concentration (mg/l) | G2: Target Concentration to assess against (mg/l) | H2: UK DWS (mg/l) | I2: UKTAG Quantification Limit (mg/l) | J2: Baseline 95th percentile concentration from ESSD (mg/l) | K2: Comment
A3: Arsenic | B3: As | C3: Haz | D3: =IF(E3<=F3,"Pass","FAIL") -> FAIL | E3: 0.06 | F3: =G3/B$21 -> 0.05144697666 | G3: =MIN(H3:J3) -> 0.0012 | H3: 0.01 | I3: 0.005 | J3: 0.0012
A4: Barium | B4: Ba | C4: Non Haz | D4: =IF(E4<=F4,"Pass","FAIL") -> FAIL | E4: 4 | F4: =G4/B$21 -> 1.864952904 | G4: 0.0435 | J4: 0.0435
A5: Cadmium | B5: Cd | C5: Non Haz | D5: FAIL | E5: 0.02 | F5: 0.008403006188 | G5: 0.000196 | H5: 0.005 | J5: 0.000196
A6: Total Chromium | B6: Cr total | C6: Haz | D6: FAIL | E6: 0.1 | F6: 0.04287248055 | G6: 0.001 | H6: 0.05 | I6: 0.001 | J6: 0.001 | K6: Chromium VI hazardous. Most WIF's only include total chromium so assume all chromium is chromium VI which is very conservative.
A7: Copper | B7: Cu | C7: Non Haz | D7: =IF(E7<=F7,"Pass","FAIL") -> FAIL | E7: 0.6 | F7: 0.2169347516 | G7: 0.00506 | H7: 2 | J7: 0.00506
A8: Mercury | B8: Hg | C8: Haz | D8: FAIL | E8: 0.002 | F8: 0.0008574496111 | G8: 2e-05 | H8: 0.001 | I8: 2e-05 | J8: 5.6e-05 | K8: Concentrations in all samples were below LOD
A9: Molybdenum | B9: Mo | C9: Non Haz | D9: FAIL | E9: 0.2 | F9: 0.08574496111 | G9: 0.002 | J9: 0.002
A10: Nickel | B10: Ni | C10: Non Haz | D10: Pass | E10: 0.12 | F10: 0.2829583717 | G10: 0.0066 | H10: 0.02 | J10: 0.0066
A11: Lead | B11: Pb | C11: Haz | D11: FAIL | E11: 0.15 | F11: 0.008574496111 | G11: 0.0002 | H11: 0.01 | I11: 0.0002 | J11: 0.00236
A12: Antimony | B12: Sb | C12: Non Haz | D12: FAIL | E12: 0.1 | F12: 0.02143624028 | G12: 0.0005 | H12: 0.005 | J12: 0.0005 | K12: Concentrations in all samples were below LOD
A13: Selenium | B13: Se | C13: Non Haz | D13: Pass | E13: 0.04 | F13: 0.077170465 | G13: 0.0018 | H13: 0.01 | J13: 0.0018
A14: Zinc | B14: Zn | C14: Non Haz | D14: Pass | E14: 1.2 | F14: 1.414791858 | G14: 0.033 | J14: 0.033
A15: Chloride | B15: Cl | C15: Non Haz | D15: Pass | E15: 460 | F15: 2400.858911 | G15: 56 | H15: 250 | J15: 56
A16: Fluoride | B16: F | C16: Non Haz | D16: Pass | E16: 2.5 | F16: 8.595932351 | G16: 0.2005 | H16: 1.5 | J16: 0.2005
A17: Sulphate(a) | B17: SO4 | C17: Non Haz | D17: Pass | E17: 1500 | F17: 10718.12014 | G17: 250 | H17: 250 | J17: 413.5
A18: Ammoniacal N | B18: NH3-N | C18: Non Haz | D18: Pass | E18: 1 | F18: =G18/B$21 -> 11.31833487 | G18: 0.264 | H18: 0.39 | J18: 0.264
A19: Dilution | B19: =Q_RO -> 0.001181015366
A20: Q Side | B20: =Q_S -> 2.8205049e-05 | C20: m3/s
A21: Dilution Factor | B21: =B20/(B20+B19) -> 0.0233249858

Sheet Groundwater (hidden)
A1: RECEPTOR: Groundwater
A3: Receptor Options
F5: No further dilution along pathway
F7: No data requirement
